Workbook

Sheet Sheet1
A1: Approximating Parametric Curves
A2: With Newton Interpolation
B4: This graphing utility produces the graph
B5: of any curve based on the parametric functions
C6: x = f(t) and y = g(t)
B7: and its Newton Interpolating Polynomials
B8: on any interval from t = a to t = b.
A11: Enter the first function in terms of t: x = f(t) = | F11: sin(2*t)
A14: Enter the second function in terms of t: y = g(t) = | F14: cos(3*t)
A17: Now enter the interval for t :
B18: Starting value a = | D18: -1
B19: Ending value b = | D19: 2
I20: The graph of the parametric function:
J21: x = | K21: =F11 -> sin(2*t)
A22: Select the degree n (1 to 6) for the interpolating polynomial: | J22: y = | K22: =F14 -> cos(3*t)
B23: 4 | E23: n = | F23: =B23 -> 4
I24: Now trace along the parametric curve:
I25: t = | J25: =D18+2*K25*Sheet2!B12 -> 0.601 | K25: 107
I26: x = | J26: =LOOKUP(J25,Sheet2!C3:C404,Sheet2!D3:D404) -> 0.933
A27: Click each item below for suggestions and investigations | I27: y = | J27: =LOOKUP(J25,Sheet2!C3:C404,Sheet2!E3:E404) -> -0.230
C28: Item 1
C29: Item 2 | I29: On the Newton Interpolating Polynomial Curve:
C30: Item 3 | I30: x = | J30: =LOOKUP(J25,Sheet2!X3:X405) -> 0.590
C31: Item 4 | I31: y = | J31: =LOOKUP(J25,Sheet2!AE3:AE404) -> 0.599
C32: Item 5
A35: To access/download all the DIGMath Apps for Calculus
A36: Click this link: | C36: DIGMath for Calculus
A38: Created by: Sheldon P. Gordon
A39: Farmingdale State College
A40: Development of this module was supported by the
A41: NSF's Division of Undergraduate Education
A42: under grants DUE-0310123 and DUE-0442160.

Sheet Sheet2
C1: t | D1: x = f(t) | E1: y = g(t) | G1: Tracing point | J1: x | K1: Dx | L1: D^2 x | M1: D^3 x | N1: D^4 x | O1: D^5 x | P1: D^6 x | R1: linear | S1: quad | T1: cubic | U1: quartic | V1: quintic | W1: 6th | X1: x-interpol | Y1: linear | Z1: quad | AA1: cubic | AB1: quartic | AC1: quintic | AD1: 6th | AE1: y-interpol
J2: =D405 -> -0.9092974268 | K2: =J3-J2 -> 0.1919413359 | L2: =K3-K2 -> 0.9148330973 | M2: =L3-L2 -> -1.41145227 | N2: =M3-M2 -> 0.6333307286 | O2: =N3-N2 -> 0.9923263336 | P2: -2.073175239
C3: =a -> -1 | D3: =SIN(2*t) -> -0.9092974268 | E3: =COS(3*t) -> -0.9899924966 | G3: 0 | H3: 0 | J3: =D406 -> -0.7173560909 | K3: =J4-J3 -> 1.106774433 | L3: -0.4966191725 | M3: -0.7781215411 | N3: 1.625657062 | O3: -1.080848906 | R3: =$J$2+$K$2*(t-B$16)/dtt -> -1.005268095 | S3: =R3+$L$2*(t-$B$16)*(t-$B$17)/dtt^2/2 -> -0.6622056833 | T3: =S3+$M$2*(t-$B$16)*(t-$B$17)*(t-$B$18)/dtt^3/6 -> -0.221126849 | U3: =T3+$N$2*(t-$B$16)*(t-$B$17)*(t-$B$18)*(t-$B$19)/dtt^4/24 -> -0.0479504779 | V3: =U3+$O$2*(t-$B$16)*(t-$B$17)*(t-$B$18)*(t-$B$19)*(t-$B$20)/dtt^5/120 -> -0.2921557866 | W3: =V3+$P$2*(t-$B$16)*(t-$B$17)*(t-$B$18)*(t-$B$19)*(t-$B$20)*(t-$B$20)/dtt^6/720 -> -0.6748023883 | X3: =IF(n=1,R3,IF(n=2,S3,IF(n=3,T3,IF(n=4,U3,IF(n=5,V3,W3))))) -> -0.0479504779 | Y3: =$J$13+$K$13*(t-$B$16)/dtt -> -1.666167622 | Z3: =Y3+$L$13*(t-$B$16)*(t-$B$17)/dtt^2/2 -> -1.999682269 | AA3: =Z3+$M$13*(t-$B$16)*(t-$B$17)*(t-$B$18)/dtt^3/6 -> -1.644577644 | AB3: =AA3+$N$13*(t-$B$16)*(t-$B$17)*(t-$B$18)*(t-$B$19)/dtt^4/24 -> -0.2850725846 | AC3: =AB3+$O$13*(t-$B$16)*(t-$B$17)*(t-$B$18)*(t-$B$19)*(t-$B$20)/dtt^5/120 -> 2.031663241 | AD3: =AC3+$P$13*(t-$B$16)*(t-$B$17)*(t-$B$18)*(t-$B$19)*(t-$B$20)*(t-$B$21)/dtt^6/720 -> 4.491179546 | AE3: =IF(n=1,Y3,IF(n=2,Z3,IF(n=3,AA3,IF(n=4,AB3,IF(n=5,AC3,AD3))))) -> -0.2850725846
C4: =C3+B$12 -> -0.9925187032 | D4: -0.915422046 | E4: -0.9865761474 | G4: =Sheet1!J26 -> 0.9327601389 | H4: =Sheet1!J27 -> -0.2301153303 | J4: 0.3894183423 | K4: 0.6101552607 | L4: -1.274740714 | M4: =L5-L4 -> 0.847535521 | N4: =M5-M4 -> 0.5448081566 | R4: -1.00287 | S4: -0.67115 | T4: -0.24677 | U4: -0.08075 | V4: -0.31422 | W4: -0.67903 | X4: -0.08075 | Y4: =$J$13+$K$13*(t-B$16)/dtt -> -1.6493054 | Z4: -1.971799751 | AA4: -1.63014139 | AB4: -0.3267747349 | AC4: 1.888141249 | AD4: 4.234231739 | AE4: =IF(n=1,Y4,IF(n=2,Z4,IF(n=3,AA4,IF(n=4,AB4,IF(n=5,AC4,AD4))))) -> -0.3267747349
C5: =C4+B$12 -> -0.9850374065 | D5: -0.921341725 | E5: -0.9826628529 | J5: 0.999573603 | K5: -0.6645854529 | L5: -0.4272051926 | M5: =L6-L5 -> 1.392343678 | R5: -1.00048 | S5: -0.67995 | T5: -0.27195 | U5: -0.11290 | V5: -0.33594 | W5: -0.68348 | X5: -0.11290 | Y5: -1.632443177 | Z5: -1.944055505 | AA5: -1.61558061 | AB5: -0.3669866242 | AC5: 1.748954121 | AD5: 3.985115137 | AE5: -0.3669866242
C6: -0.9775561097 | D6: -0.9270551385 | E6: -0.9782545841 | J6: 0.3349881502 | K6: -1.091790645 | L6: 0.9651384851 | R6: -0.99809 | S6: -0.68861 | T6: -0.29666 | U6: -0.14441 | V6: -0.35731 | W6: -0.68814 | X6: -0.14441 | Y6: -1.615580954 | Z6: -1.916449532 | AA6: -1.600897505 | AB6: -0.4057295514 | AC6: 1.614028941 | AD6: 3.743681858 | AE6: -0.4057295514
C7: -0.970074813 | D7: -0.9325610076 | E7: -0.9733535615 | J7: -0.7568024953 | K7: -0.1266521604 | R7: -0.99569 | S7: -0.69712 | T7: -0.32090 | U7: -0.17530 | V7: -0.37835 | W7: -0.69298 | X7: -0.17530 | Y7: -1.598718732 | Z7: -1.888981831 | AA7: -1.58609428 | AB7: -0.4430246955 | AC7: 1.483293476 | AD7: 3.509785793 | AE7: -0.4430246955
C8: -0.9625935162 | D8: -0.9378580996 | E8: -0.967962254 | G8: Vertical line | J8: -0.8834546557 | R8: -0.99330 | S8: -0.70550 | T8: -0.34469 | U8: -0.20555 | V8: -0.39904 | W8: -0.69801 | X8: -0.20555 | Y8: -1.581856509 | Z8: -1.861652402 | AA8: -1.571173137 | AB8: -0.4788931154 | AC8: 1.356676173 | AD8: 3.283282591 | AE8: -0.4788931154
C9: -0.9551122195 | D9: -0.9429452286 | E9: -0.9620833769 | R9: -0.99091 | S9: -0.71373 | T9: -0.36802 | U9: -0.23519 | V9: -0.41938 | W9: -0.70321 | X9: -0.23519 | Y9: -1.564994287 | Z9: -1.834461245 | AA9: -1.556136278 | AB9: -0.5133557496 | AC9: 1.234106156 | AD9: 3.064029652 | AE9: -0.5133557496
C10: -0.9476309227 | D10: -0.9478212557 | E10: -0.9557198917 | G10: =t0 -> 0.6009975062 | H10: =MIN(0,LOOKUP(t0,C3:C404,D3:D404),LOOKUP(t0,C3:C404,E3:E404)) -> -0.2301153303 | R10: -0.98852 | S10: -0.72182 | T10: -0.39089 | U10: -0.26420 | V10: -0.43939 | W10: -0.70856 | X10: -0.26420 | Y10: -1.548132064 | Z10: -1.807408361 | AA10: -1.540985906 | AB10: -0.5464334166 | AC10: 1.115513224 | AD10: 2.85188611 | AE10: -0.5464334166
C11: -0.9401496259 | D11: -0.9524850892 | E11: -0.9488750036 | G11: =t0 -> 0.6009975062 | H11: =MAX(0,LOOKUP(t0,C3:C404,D3:D404),LOOKUP(t0,C3:C404,E3:E404)) -> 0.9327601389 | R11: -0.98612 | S11: -0.72976 | T11: -0.41331 | U11: -0.29261 | V11: -0.45905 | W11: -0.71406 | X11: -0.29261 | Y11: -1.531269841 | Z11: -1.780493748 | AA11: -1.525724225 | AB11: -0.5781468145 | AC11: 1.000827851 | AD11: 2.64671282 | AE11: -0.5781468145
A12: delta t = | B12: =(Sheet1!D19-Sheet1!D18)/401 -> 0.007481296758 | C12: -0.9326683292 | D12: -0.9569356852 | E12: -0.9415521605 | J12: y | K12: Dx | L12: D^2 x | M12: D^3 x | N12: D^4 x | O12: D^5 x | P12: D^6 x | R12: -0.98373 | S12: -0.73757 | T12: -0.43528 | U12: -0.32041 | V12: -0.47836 | W12: -0.71969 | X12: -0.32041 | Y12: -1.514407619 | Z12: -1.753717408 | AA12: -1.510353437 | AB12: -0.6085165216 | AC12: 0.8899811759 | AD12: 2.448372349 | AE12: -0.6085165216
C13: -0.9251870324 | D13: -0.9611720471 | E13: -0.9337550509 | J13: =E405 -> -0.9899924966 | K13: =J14-J13 -> 1.352350251 | L13: =K14-K13 -> -0.8893723906 | M13: =L14-L13 -> -1.1363348 | N13: =M14-M13 -> 4.971904216 | O13: =N14-N13 -> -9.414037642 | P13: =O14-O13 -> 10.90279089 | R13: -0.98134 | S13: -0.74523 | T13: -0.45681 | U13: -0.34760 | V13: -0.49733 | W13: -0.72544 | X13: -0.34760 | Y13: -1.497545396 | Z13: -1.72707934 | AA13: -1.494875745 | AB13: -0.6375629956 | AC13: 0.7829050064 | AD13: 2.256728962 | AE13: -0.6375629956
A14: dtt = | B14: =(b-a)/(n+1) -> 0.6 | C14: -0.9177057357 | D14: -0.9651932266 | E14: -0.9254876023 | J14: =E406 -> 0.3623577545 | K14: =J15-J14 -> 0.4629778604 | L14: =K15-K14 -> -2.025707191 | M14: =L15-L14 -> 3.835569416 | N14: =M15-M14 -> -4.442133426 | O14: 1.488753249 | R14: -0.97894 | S14: -0.75275 | T14: -0.47789 | U14: -0.37420 | V14: -0.51596 | W14: -0.73131 | X14: -0.37420 | Y14: -1.480683174 | Z14: -1.700579545 | AA14: -1.479293352 | AB14: -0.6653065743 | AC14: 0.6795318131 | AD14: 2.071648609 | AE14: -0.6653065743
C15: -0.9102244389 | D15: -0.9689983235 | E15: -0.916753979 | J15: 0.8253356149 | K15: -1.56272933 | L15: 1.809862225 | M15: =L16-L15 -> -0.6065640109 | N15: =M16-M15 -> -2.953380177 | R15: -0.97655 | S15: -0.76013 | T15: -0.49853 | U15: -0.40021 | V15: -0.53424 | W15: -0.73728 | X15: -0.40021 | Y15: -1.463820951 | Z15: -1.674218021 | AA15: -1.46360846 | AB15: -0.6917674752 | AC15: 0.5797947275 | AD15: 1.892998912 | AE15: -0.6917674752
A16: T00 = | B16: =a+dtt/2 -> -0.7 | C16: -0.9027431421 | D16: -0.9725864858 | E16: -0.9075585803 | J16: -0.7373937155 | K16: 0.2471328942 | L16: 1.203298214 | M16: =L17-L16 -> -3.559944188 | R16: -0.97416 | S16: -0.76736 | T16: -0.51873 | U16: -0.42563 | V16: -0.55218 | W16: -0.74334 | X16: -0.42563 | Y16: -1.446958729 | Z16: -1.64799477 | AA16: -1.447823273 | AB16: -0.7169657957 | AC16: 0.4836275388 | AD16: 1.720649156 | AE16: -0.7169657957
A17: T01 = | B17: =B16+dtt -> -0.1 | C17: -0.8952618454 | D17: -0.9759569103 | E17: -0.8979060379 | J17: -0.4902608213 | K17: 1.450431108 | L17: -2.356645974 | R17: -0.97176 | S17: -0.77446 | T17: -0.53849 | U17: -0.45047 | V17: -0.56978 | W17: -0.74948 | X17: -0.45047 | Y17: -1.430096506 | Z17: -1.621909791 | AA17: -1.431939993 | AB17: -0.7409215129 | AC17: 0.3909646911 | AD17: 1.554470274 | AE17: -0.7409215129
A18: T02 = | B18: =B17+dtt -> 0.5 | C18: -0.8877805486 | D18: -0.9791088424 | E18: -0.8878012139 | J18: 0.9601702867 | K18: -0.9062148661 | R18: -0.96937 | S18: -0.78141 | T18: -0.55783 | U18: -0.47473 | V18: -0.58704 | W18: -0.75569 | X18: -0.47473 | Y18: -1.413234283 | Z18: -1.595963084 | AA18: -1.415960824 | AB18: -0.7636544839 | AC18: 0.301741281 | AD18: 1.394334835 | AE18: -0.7636544839
A19: T03 = | B19: =B18+dtt -> 1.1 | C19: -0.8802992519 | D19: -0.9820415765 | E19: -0.8772491982 | J19: 0.05395542056 | R19: -0.96698 | S19: -0.78822 | T19: -0.57673 | U19: -0.49843 | V19: -0.60395 | W19: -0.76196 | X19: -0.49843 | Y19: -1.396372061 | Z19: -1.570154649 | AA19: -1.399887967 | AB19: -0.7851844455 | AC19: 0.2158930541 | AD19: 1.240117032 | AE19: -0.7851844455
A20: T04 = | B20: =B19+dtt -> 1.7 | C20: -0.8728179551 | D20: -0.9847544561 | E20: -0.8662553058 | R20: -0.96458 | S20: -0.79488 | T20: -0.59520 | U20: -0.52155 | V20: -0.62052 | W20: -0.76829 | X20: -0.52155 | Y20: -1.379509838 | Z20: -1.544484487 | AA20: -1.383723627 | AB20: -0.8055310143 | AC20: 0.1333564026 | AD20: 1.091692671 | AE20: -0.8055310143
A21: T05 = | B21: =B20+dtt -> 2.3 | C21: -0.8653366584 | D21: -0.9872468737 | E21: -0.8548250745 | R21: -0.96219 | S21: -0.80141 | T21: -0.61325 | U21: -0.54411 | V21: -0.63675 | W21: -0.77465 | X21: -0.54411 | Y21: -1.362647616 | Z21: -1.518952597 | AA21: -1.367470005 | AB21: -0.8247136868 | AC21: 0.05406836252 | AD21: 0.9489391602 | AE21: -0.8247136868
A22: T06 = | B22: =B21+dtt -> 2.9 | C22: -0.8578553616 | D22: -0.9895182713 | E22: -0.8429642618 | R22: -0.95980 | S22: -0.80779 | T22: -0.63088 | U22: -0.56612 | V22: -0.65263 | W22: -0.78105 | X22: -0.56612 | Y22: -1.345785393 | Z22: -1.493558979 | AA22: -1.351129304 | AB22: -0.8427518393 | AC22: -0.02203338954 | AD22: 0.8117354922 | AE22: -0.8427518393
C23: -0.8503740648 | D23: -0.9915681406 | E23: -0.8306788421 | R23: -0.95740 | S23: -0.81403 | T23: -0.64809 | U23: -0.58757 | V23: -0.66818 | W23: -0.78747 | X23: -0.58757 | Y23: -1.32892317 | Z23: -1.468303633 | AA23: -1.334703728 | AB23: -0.8596647279 | AC23: -0.09501053885 | AD23: 0.6799622382 | AE23: -0.8596647279
C24: -0.8428927681 | D24: -0.9933960224 | E24: -0.8179750035 | R24: -0.95501 | S24: -0.82013 | T24: -0.66488 | U24: -0.60848 | V24: -0.68338 | W24: -0.79391 | X24: -0.60848 | Y24: -1.312060948 | Z24: -1.443186559 | AA24: -1.31819548 | AB24: -0.8754714886 | AC24: -0.1649241356 | AD24: 0.5535015332 | AE24: -0.8754714886
C25: -0.8354114713 | D25: -0.9950015078 | E25: -0.8048591451 | R25: -0.95262 | S25: -0.82609 | T25: -0.68125 | U25: -0.62885 | V25: -0.69824 | W25: -0.80035 | X25: -0.62885 | Y25: -1.295198725 | Z25: -1.418207758 | AA25: -1.301606761 | AB25: -0.890191137 | AC25: -0.2318345976 | AD25: 0.4322370646 | AE25: -0.890191137
C26: -0.8279301746 | D26: -0.9963842371 | E26: -0.7913378735 | R26: -0.95022 | S26: -0.83190 | T26: -0.69722 | U26: -0.64868 | V26: -0.71277 | W26: -0.80680 | X26: -0.64868 | Y26: -1.278336503 | Z26: -1.393367229 | AA26: -1.284939775 | AB26: -0.9038425688 | AC26: -0.2958017132 | AD26: 0.3160540604 | AE26: -0.9038425688
C27: -0.8204488778 | D27: -0.9975439009 | E27: -0.7774179995 | R27: -0.94783 | S27: -0.83757 | T27: -0.71278 | U27: -0.66797 | V27: -0.72695 | W27: -0.81323 | X27: -0.66797 | Y27: -1.26147428 | Z27: -1.368664972 | AA27: -1.268196725 | AB27: -0.9164445593 | AC27: -0.3568846443 | AD27: 0.204839277 | AE27: -0.9164445593
C28: -0.812967581 | D28: -0.9984802395 | E28: -0.7631065344 | R28: -0.94544 | S28: -0.84310 | T28: -0.72793 | U28: -0.68674 | V28: -0.74080 | W28: -0.81964 | X28: -0.68674 | Y28: -1.244612058 | Z28: -1.344100987 | AA28: -1.251379814 | AB28: -0.9280157638 | AC28: -0.4151419286 | AD28: 0.0984809883 | AE28: -0.9280157638
C29: -0.8054862843 | D29: -0.9991930434 | E29: -0.7484106873 | R29: -0.94304 | S29: -0.84849 | T29: -0.74268 | U29: -0.70498 | V29: -0.75431 | W29: -0.82603 | X29: -0.70498 | Y29: -1.227749835 | Z29: -1.319675275 | AA29: -1.234491244 | AB29: -0.9385747174 | AC29: -0.4706314833 | AD29: -0.003131027023 | AE29: -0.9385747174
C30: -0.7980049875 | D30: -0.9996821528 | E30: -0.7333378603 | R30: -0.94065 | S30: -0.85373 | T30: -0.75703 | U30: -0.72271 | V30: -0.76748 | W30: -0.83238 | X30: -0.72271 | Y30: -1.210887612 | Z30: -1.295387835 | AA30: -1.217533218 | AB30: -0.9481398348 | AC30: -0.5234106072 | AD30: -0.1001054966 | AE30: -0.9481398348
C31: -0.7905236908 | D31: -0.9999474584 | E31: -0.717895646 | R31: -0.93826 | S31: -0.85883 | T31: -0.77098 | U31: -0.73992 | V31: -0.78032 | W31: -0.83870 | X31: -0.73992 | Y31: -1.19402539 | Z31: -1.271238666 | AA31: -1.200507939 | AB31: -0.9567294109 | AC31: -0.5735359839 | AD31: -0.1925496661 | AE31: -0.9567294109
C32: -0.783042394 | D32: -0.9999889007 | E32: -0.7020918225 | R32: -0.93586 | S32: -0.86379 | T32: -0.78453 | U32: -0.75663 | V32: -0.79282 | W32: -0.84496 | X32: -0.75663 | Y32: -1.177163167 | Z32: -1.247227771 | AA32: -1.183417611 | AB32: -0.96436162 | AC32: -0.6210636845 | AD32: -0.280569311 | AE32: -0.96436162
C33: -0.7755610973 | D33: -0.9998064705 | E33: -0.6859343504 | R33: -0.93347 | S33: -0.86861 | T33: -0.79770 | U33: -0.77283 | V33: -0.80498 | W33: -0.85117 | X33: -0.77283 | Y33: -1.160300945 | Z33: -1.223355147 | AA33: -1.166264435 | AB33: -0.9710545165 | AC33: -0.6660491705 | AD33: -0.3642687482 | AE33: -0.9710545165
C34: -0.7680798005 | D34: -0.9994002086 | E34: -0.6694313683 | R34: -0.93108 | S34: -0.87329 | T34: -0.81047 | U34: -0.78853 | V34: -0.81681 | W34: -0.85732 | X34: -0.78853 | Y34: -1.143438722 | Z34: -1.199620795 | AA34: -1.149050615 | AB34: -0.9768260346 | AC34: -0.7085472966 | AD34: -0.4437508472 | AE34: -0.9768260346
C35: -0.7605985037 | D35: -0.9987702059 | E35: -0.6525911889 | R35: -0.92868 | S35: -0.87782 | T35: -0.82286 | U35: -0.80374 | V35: -0.82831 | W35: -0.86340 | X35: -0.80374 | Y35: -1.1265765 | Z35: -1.176024716 | AA35: -1.131778353 | AB35: -0.9816939882 | AC35: -0.7486123138 | AD35: -0.5191170419 | AE35: -0.9816939882
C36: -0.753117207 | D36: -0.9979166035 | E36: -0.6354222947 | R36: -0.92629 | S36: -0.88221 | T36: -0.83486 | U36: -0.81846 | V36: -0.83948 | W36: -0.86940 | X36: -0.81846 | Y36: -1.109714277 | Z36: -1.152566909 | AA36: -1.114449853 | AB36: -0.9856760712 | AC36: -0.7862978716 | AD36: -0.590467342 | AE36: -0.9856760712
C37: -0.7456359102 | D37: -0.9968395925 | E37: -0.6179333338 | R37: -0.92390 | S37: -0.88646 | T37: -0.84649 | U37: -0.83270 | V37: -0.85031 | W37: -0.87532 | X37: -0.83270 | Y37: -1.092852054 | Z37: -1.129247374 | AA37: -1.097067316 | AB37: -0.9887898572 | AC37: -0.8216570215 | AD37: -0.6579003443 | AE37: -0.9887898572
C38: -0.7381546135 | D38: -0.9955394141 | E38: -0.6001331155 | R38: -0.92150 | S38: -0.89057 | T38: -0.85773 | U38: -0.84645 | V38: -0.86082 | W38: -0.88115 | X38: -0.84645 | Y38: -1.075989832 | Z38: -1.106066112 | AA38: -1.079632947 | AB38: -0.9910527995 | AC38: -0.8547422196 | AD38: -0.7215132441 | AE38: -0.9910527995
C39: -0.7306733167 | D39: -0.9940163592 | E39: -0.582030606 | R39: -0.91911 | S39: -0.89453 | T39: -0.86860 | U39: -0.85973 | V39: -0.87099 | W39: -0.88689 | X39: -0.85973 | Y39: -1.059127609 | Z39: -1.083023121 | AA39: -1.062148948 | AB39: -0.9924822315 | AC39: -0.8856053294 | AD39: -0.7814018467 | AE39: -0.9924822315
C40: -0.72319202 | D40: -0.9922707688 | E40: -0.5636349235 | R40: -0.91672 | S40: -0.89835 | T40: -0.87910 | U40: -0.87254 | V40: -0.88084 | W40: -0.89252 | X40: -0.87254 | Y40: -1.042265387 | Z40: -1.060118403 | AA40: -1.044617521 | AB40: -0.9930953663 | AC40: -0.9142976243 | AD40: -0.8376605783 | AE40: -0.9930953663
C41: -0.7157107232 | D41: -0.9903030339 | E41: -0.5449553341 | R41: -0.91432 | S41: -0.90203 | T41: -0.88922 | U41: -0.88488 | V41: -0.89036 | W41: -0.89805 | X41: -0.88488 | Y41: -1.025403164 | Z41: -1.037351957 | AA41: -1.02704087 | AB41: -0.9929092967 | AC41: -0.9408697914 | AD41: -0.8903824977 | AE41: -0.9929092967
C42: -0.7082294264 | D42: -0.9881135948 | E42: -0.5260012469 | R42: -0.91193 | S42: -0.90557 | T42: -0.89898 | U42: -0.89676 | V42: -0.89956 | W42: -0.90347 | X42: -0.89676 | Y42: -1.008540941 | Z42: -1.014723783 | AA42: -1.009421197 | AB42: -0.9919409955 | AC42: -0.9653719332 | AD42: -0.9396593071 | AE42: -0.9919409955
C43: -0.7007481297 | D43: -0.9857029417 | E43: -0.5067822091 | R43: -0.90954 | S43: -0.90897 | T43: -0.90838 | U43: -0.90818 | V43: -0.90843 | W43: -0.90877 | X43: -0.90818 | Y43: -0.9916787189 | Z43: -0.9922338818 | AA43: -0.991760706 | AB43: -0.9902073152 | AC43: -0.9878535712 | AD43: -0.9855813635 | AE43: -0.9902073152
C44: -0.6932668329 | D44: -0.9830716144 | E44: -0.4873079015 | R44: -0.90714 | S44: -0.91222 | T44: -0.91741 | U44: -0.91915 | V44: -0.91698 | W44: -0.91395 | X44: -0.91915 | Y44: -0.9748164963 | Z44: -0.9698822524 | AA44: -0.9740615985 | AB44: -0.9877249883 | AC44: -1.008363648 | AD44: -1.02823769 | AE44: -0.9877249883
C45: -0.6857855362 | D45: -0.9802202019 | E45: -0.4675881335 | R45: -0.90475 | S45: -0.91533 | T45: -0.92608 | U45: -0.92967 | V45: -0.92520 | W45: -0.91901 | X45: -0.92967 | Y45: -0.9579542737 | Z45: -0.9476688953 | AA45: -0.956326078 | AB45: -0.9845106268 | AC45: -1.026950533 | AD45: -1.067715985 | AE45: -0.9845106268
C46: -0.6783042394 | D46: -0.9771493425 | E46: -0.4476328381 | R46: -0.90236 | S46: -0.91830 | T46: -0.93440 | U46: -0.93975 | V46: -0.93310 | W46: -0.92393 | X46: -0.93975 | Y46: -0.9410920511 | Z46: -0.9255938104 | AA46: -0.9385563472 | AB46: -0.9805807228 | AC46: -1.043662018 | AD46: -1.104102639 | AE46: -0.9805807228
C47: -0.6708229426 | D47: -0.9738597239 | E47: -0.4274520668 | R47: -0.89996 | S47: -0.92113 | T47: -0.94236 | U47: -0.94939 | V47: -0.94069 | W47: -0.92871 | X47: -0.94939 | Y47: -0.9242298285 | Z47: -0.9036569976 | AA47: -0.9207546089 | AB47: -0.9759516482 | AC47: -1.05854533 | AD47: -1.137482736 | AE47: -0.9759516482
C48: -0.6633416459 | D48: -0.9703520823 | E48: -0.4070559849 | R48: -0.89757 | S48: -0.92381 | T48: -0.94997 | U48: -0.95860 | V48: -0.94795 | W48: -0.93335 | X48: -0.95860 | Y48: -0.9073676059 | Z48: -0.8818584571 | AA48: -0.9029230661 | AB48: -0.9706396546 | AC48: -1.071647126 | AD48: -1.167940073 | AE48: -0.9706396546
C49: -0.6558603491 | D49: -0.9666272032 | E49: -0.3864548661 | R49: -0.89518 | S49: -0.92635 | T49: -0.95724 | U49: -0.96738 | V49: -0.95490 | W49: -0.93785 | X49: -0.96738 | Y49: -0.8905053834 | Z49: -0.8601981888 | AA49: -0.8850639216 | AB49: -0.9646608735 | AC49: -1.083013501 | AD49: -1.195557169 | AE49: -0.9646608735
C50: -0.6483790524 | D50: -0.9626859203 | E50: -0.3656590871 | R50: -0.89278 | S50: -0.92875 | T50: -0.96416 | U50: -0.97573 | V50: -0.96153 | W50: -0.94219 | X50: -0.97573 | Y50: -0.8736431608 | Z50: -0.8386761928 | AA50: -0.8671793781 | AB50: -0.9580313162 | AC50: -1.092689985 | AD50: -1.220415271 | AE50: -0.9580313162
C51: -0.6408977556 | D51: -0.9585291161 | E51: -0.3446791232 | R51: -0.89039 | S51: -0.93101 | T51: -0.97073 | U51: -0.98366 | V51: -0.96785 | W51: -0.94638 | X51: -0.98366 | Y51: -0.8567809382 | Z51: -0.8172924689 | AA51: -0.8492716386 | AB51: -0.9507668738 | AC51: -1.100721553 | AD51: -1.242594372 | AE51: -0.9507668738
C52: -0.6334164589 | D52: -0.9541577212 | E52: -0.3235255419 | R52: -0.88800 | S52: -0.93312 | T52: -0.97697 | U52: -0.99117 | V52: -0.97386 | W52: -0.95041 | X52: -0.99117 | Y52: -0.8399187156 | Z52: -0.7960470172 | AA52: -0.8313429059 | AB52: -0.9428833172 | AC52: -1.107152623 | AD52: -1.262173217 | AE52: -0.9428833172
C53: -0.6259351621 | D53: -0.9495727142 | E53: -0.3022089985 | R53: -0.88560 | S53: -0.93510 | T53: -0.98286 | U53: -0.99828 | V53: -0.97955 | W53: -0.95428 | X53: -0.99828 | Y53: -0.823056493 | Z53: -0.7749398378 | AA53: -0.8133953828 | AB53: -0.9343962973 | AC53: -1.112027059 | AD53: -1.279229314 | AE53: -0.9343962973
C54: -0.6184538653 | D54: -0.9447751216 | E54: -0.2807402303 | R54: -0.88321 | S54: -0.93693 | T54: -0.98843 | U54: -1.00497 | V54: -0.98494 | W54: -0.95798 | X54: -1.00497 | Y54: -0.8061942705 | Z54: -0.7539709305 | AA54: -0.7954312722 | AB54: -0.9253213446 | AC54: -1.115388178 | AD54: -1.293838947 | AE54: -0.9253213446
C55: -0.6109725686 | D55: -0.9397660174 | E55: -0.2591300512 | R55: -0.88082 | S55: -0.93862 | T55: -0.99366 | U55: -1.01127 | V55: -0.99001 | W55: -0.96151 | X55: -1.01127 | Y55: -0.7893320479 | Z55: -0.7331402955 | AA55: -0.7774527769 | AB55: -0.9156738696 | AC55: -1.117278747 | AD55: -1.306077186 | AE55: -0.9156738696
C56: -0.6034912718 | D56: -0.9345465231 | E56: -0.2373893466 | R56: -0.87842 | S56: -0.94016 | T56: -0.99856 | U56: -1.01716 | V56: -0.99478 | W56: -0.96487 | X56: -1.01716 | Y56: -0.7724698253 | Z56: -0.7124479327 | AA56: -0.7594620998 | AB56: -0.9054691624 | AC56: -1.117740989 | AD56: -1.316017895 | AE56: -0.9054691624
C57: -0.5960099751 | D57: -0.9291178072 | E57: -0.2155290672 | R57: -0.87603 | S57: -0.94157 | T57: -1.00314 | U57: -1.02266 | V57: -0.99925 | W57: -0.96805 | X57: -1.02266 | Y57: -0.7556076027 | Z57: -0.6918938421 | AA57: -0.7414614436 | AB57: -0.8947223932 | AC57: -1.116816587 | AD57: -1.323733747 | AE57: -0.8947223932
C58: -0.5885286783 | D58: -0.923481085 | E58: -0.1935602243 | R58: -0.87364 | S58: -0.94283 | T58: -1.00739 | U58: -1.02777 | V58: -1.00341 | W58: -0.97106 | X58: -1.02777 | Y58: -0.7387453801 | Z58: -0.6714780237 | AA58: -0.7234530113 | AB58: -0.8834486118 | AC58: -1.114546684 | AD58: -1.329296231 | AE58: -0.8834486118
C59: -0.5810473815 | D59: -0.9176376184 | E59: -0.1714938838 | R59: -0.87124 | S59: -0.94395 | T59: -1.01132 | U59: -1.03249 | V59: -1.00727 | W59: -0.97388 | X59: -1.03249 | Y59: -0.7218831575 | Z59: -0.6512004775 | AA59: -0.7054390057 | AB59: -0.8716627478 | AC59: -1.110971887 | AD59: -1.332775663 | AE59: -0.8716627478
C60: -0.5735660848 | D60: -0.9115887157 | E60: -0.1493411606 | R60: -0.86885 | S60: -0.94493 | T60: -1.01493 | U60: -1.03684 | V60: -1.01083 | W60: -0.97651 | X60: -1.03684 | Y60: -0.705020935 | Z60: -0.6310612035 | AA60: -0.6874216296 | AB60: -0.8593796109 | AC60: -1.106132271 | AD60: -1.334241199 | AE60: -0.8593796109
C61: -0.566084788 | D61: -0.905335731 | E61: -0.1271132132 | R61: -0.86646 | S61: -0.94576 | T61: -1.01823 | U61: -1.04081 | V61: -1.01409 | W61: -0.97895 | X61: -1.04081 | Y61: -0.6881587124 | Z61: -0.6110602017 | AA61: -0.6694030858 | AB61: -0.8466138904 | AC61: -1.10006738 | AD61: -1.333760841 | AE61: -0.8466138904
C62: -0.5586034913 | D62: -0.8988800643 | E62: -0.1048212379 | R62: -0.86406 | S62: -0.94646 | T62: -1.02122 | U62: -1.04440 | V62: -1.01705 | W62: -0.98121 | X62: -1.04440 | Y62: -0.6712964898 | Z62: -0.5911974722 | AA62: -0.6513855772 | AB62: -0.8333801555 | AC62: -1.092816232 | AD62: -1.331401453 | AE62: -0.8333801555
C63: -0.5511221945 | D63: -0.8922231607 | E63: -0.08247646349 | R63: -0.86167 | S63: -0.94701 | T63: -1.02389 | U63: -1.04763 | V63: -1.01972 | W63: -0.98327 | X63: -1.04763 | Y63: -0.6544342672 | Z63: -0.5714730148 | AA63: -0.6333713067 | AB63: -0.819692855 | AC63: -1.084417318 | AD63: -1.327228767 | AE63: -0.819692855
C64: -0.5436408978 | D64: -0.8853665107 | E64: -0.06009014508 | R64: -0.85928 | S64: -0.94742 | T64: -1.02626 | U64: -1.05049 | V64: -1.02210 | W64: -0.98513 | X64: -1.05049 | Y64: -0.6375720446 | Z64: -0.5518868297 | AA64: -0.6153624771 | AB64: -0.8055663179 | AC64: -1.074908611 | AD64: -1.321307392 | AE64: -0.8055663179
C65: -0.536159601 | D65: -0.8783116492 | E65: -0.03767355884 | R65: -0.85688 | S65: -0.94768 | T65: -1.02832 | U65: -1.05299 | V65: -1.02418 | W65: -0.98679 | X65: -1.05299 | Y65: -0.6207098221 | Z65: -0.5324389168 | AA65: -0.5973612912 | AB65: -0.7910147528 | AC65: -1.064327561 | AD65: -1.313700832 | AE65: -0.7910147528
C66: -0.5286783042 | D66: -0.8710601557 | E66: -0.01523799616 | R66: -0.85449 | S66: -0.94781 | T66: -1.03008 | U66: -1.05514 | V66: -1.02598 | W66: -0.98826 | X66: -1.05514 | Y66: -0.6038475995 | Z66: -0.5131292761 | AA66: -0.5793699518 | AB66: -0.7760522481 | AC66: -1.052711105 | AD66: -1.304471487 | AE66: -0.7760522481
C67: -0.5211970075 | D67: =SIN(2*t) -> -0.8636136536 | E67: =COS(3*t) -> 0.007205242006 | R67: =$J$2+$K$2*(t-B$16)/dtt -> -0.85210 | S67: =R67+$L$2*(t-$B$16)*(t-$B$17)/dtt^2/2 -> -0.94779 | T67: =S67+$M$2*(t-$B$16)*(t-$B$17)*(t-$B$18)/dtt^3/6 -> -1.03155 | U67: =T67+$N$2*(t-$B$16)*(t-$B$17)*(t-$B$18)*(t-$B$19)/dtt^4/24 -> -1.05693 | V67: =U67+$O$2*(t-$B$16)*(t-$B$17)*(t-$B$18)*(t-$B$19)*(t-$B$20)/dtt^5/120 -> -1.02748 | W67: =V67+$P$2*(t-$B$16)*(t-$B$17)*(t-$B$18)*(t-$B$19)*(t-$B$20)*(t-$B$20)/dtt^6/720 -> -0.98952 | X67: =IF(n=1,R67,IF(n=2,S67,IF(n=3,T67,IF(n=4,U67,IF(n=5,V67,W67))))) -> -1.05693 | Y67: -0.5869853769 | Z67: =Y67+$L$13*(t-$B$16)*(t-$B$17)/dtt^2/2 -> -0.4939579076 | AA67: =Z67+$M$13*(t-$B$16)*(t-$B$17)*(t-$B$18)/dtt^3/6 -> -0.5613906619 | AB67: =AA67+$N$13*(t-$B$16)*(t-$B$17)*(t-$B$18)*(t-$B$19)/dtt^4/24 -> -0.7606927721 | AC67: =AB67+$O$13*(t-$B$16)*(t-$B$17)*(t-$B$18)*(t-$B$19)*(t-$B$20)/dtt^5/120 -> -1.040095665 | AD67: =AC67+$P$13*(t-$B$16)*(t-$B$17)*(t-$B$18)*(t-$B$19)*(t-$B$20)*(t-$B$21)/dtt^6/720 -> -1.293680668 | AE67: -0.7606927721
C68: -0.5137157107 | D68: -0.8559738099 | E68: 0.02964485084 | R68: -0.84970 | S68: -0.94763 | T68: -1.03271 | U68: -1.05838 | V68: -1.02870 | W68: -0.99058 | X68: -1.05838 | Y68: =$J$13+$K$13*(t-B$16)/dtt -> -0.5701231543 | Z68: -0.4749248113 | AA68: -0.5434256242 | AB68: -0.7449501729 | AC68: -1.026517156 | AD68: -1.281388608 | AE68: =IF(n=1,Y68,IF(n=2,Z68,IF(n=3,AA68,IF(n=4,AB68,IF(n=5,AC68,AD68))))) -> -0.7449501729
C69: =C68+B$12 -> -0.506234414 | D69: -0.8481423351 | E69: 0.05206952735 | R69: -0.84731 | S69: -0.94733 | T69: -1.03359 | U69: -1.05949 | V69: -1.02964 | W69: -0.99142 | X69: -1.05949 | Y69: -0.5532609317 | Z69: -0.4560299872 | AA69: -0.5254770416 | AB69: -0.7288381784 | AC69: -1.01201098 | AD69: -1.267654469 | AE69: -0.7288381784
C70: -0.4987531172 | D70: -0.8401209824 | E70: 0.07446797608 | R70: -0.84492 | S70: -0.94688 | T70: -1.03417 | U70: -1.06026 | V70: -1.03030 | W70: -0.99207 | X70: -1.06026 | Y70: -0.5363987091 | Z70: -0.4372734353 | AA70: -0.5075471169 | AB70: -0.7123703964 | AC70: -0.9966120401 | AD70: -1.252536354 | AE70: -0.7123703964
C71: -0.4912718204 | D71: -0.8319115476 | E71: 0.09682891476 | R71: -0.84252 | S71: -0.94629 | T71: -1.03446 | U71: -1.06069 | V71: -1.03067 | W71: -0.99250 | X71: -1.06069 | Y71: -0.5195364866 | Z71: -0.4186551557 | AA71: -0.489638053 | AB71: -0.6955603144 | AC71: -0.9803547338 | AD71: -1.236091317 | AE71: -0.6955603144
C72: -0.4837905237 | D72: -0.8235158686 | E72: 0.11914108 | R72: -0.84013 | S72: -0.94556 | T72: -1.03447 | U72: -1.06080 | V72: -1.03077 | W72: -0.99272 | X72: -1.06080 | Y72: -0.502674264 | Z72: -0.4001751482 | AA72: -0.4717520527 | AB72: -0.6784212998 | AC72: -0.9632729611 | AD72: -1.21837537 | AE72: -0.6784212998
C73: -0.4763092269 | D73: -0.8149358249 | E73: 0.1413932331 | R73: -0.83774 | S73: -0.94469 | T73: -1.03420 | U73: -1.06058 | V73: -1.03059 | W73: -0.99273 | X73: -1.06058 | Y73: -0.4858120414 | Z73: -0.381833413 | AA73: -0.4538913189 | AB73: -0.6609665998 | AC73: -0.9454001257 | AD73: -1.1994435 | AE73: -0.6609665998
C74: -0.4688279302 | D74: -0.8061733374 | E74: 0.1635741654 | R74: -0.83534 | S74: -0.94368 | T74: -1.03364 | U74: -1.06003 | V74: -1.03014 | W74: -0.99252 | X74: -1.06003 | Y74: -0.4689498188 | Z74: -0.3636299499 | AA74: -0.4360580544 | AB74: -0.6432093415 | AC74: -0.9267691379 | AD74: -1.17934967 | AE74: -0.6432093415
C75: -0.4613466334 | D75: -0.7972303679 | E75: 0.1856727042 | R75: -0.83295 | S75: -0.94252 | T75: -1.03281 | U75: -1.05917 | V75: -1.02942 | W75: -0.99210 | X75: -1.05917 | Y75: -0.4520875962 | Z75: -0.3455647591 | AA75: -0.418254462 | AB75: -0.6251625316 | AC75: -0.9074124178 | AD75: -1.158146836 | AE75: -0.6251625316
C76: -0.4538653367 | D76: -0.7881089184 | E76: 0.2076777184 | R76: -0.83056 | S76: -0.94123 | T76: -1.03171 | U76: -1.05799 | V76: -1.02842 | W76: -0.99146 | X76: -1.05799 | Y76: -0.4352253737 | Z76: -0.3276378405 | AA76: -0.4004827445 | AB76: -0.606839057 | AC76: -0.8873618975 | AD76: -1.135886953 | AE76: -0.606839057
C77: -0.4463840399 | D77: -0.778811031 | E77: 0.2295781238 | R77: -0.82817 | S77: -0.93979 | T77: -1.03033 | U77: -1.05651 | V77: -1.02716 | W77: -0.99061 | X77: -1.05651 | Y77: -0.4183631511 | Z77: -0.3098491941 | AA77: -0.3827451049 | AB77: -0.588251684 | AC77: -0.8666490248 | AD77: -1.112620984 | AE77: -0.588251684
C78: -0.4389027431 | D78: -0.7693387872 | E78: 0.2513628892 | R78: -0.82577 | S78: -0.93820 | T78: -1.02868 | U78: -1.05472 | V78: -1.02564 | W78: -0.98954 | X78: -1.05472 | Y78: -0.4015009285 | Z78: -0.2921988199 | AA78: -0.365043746 | AB78: -0.569413059 | AC78: -0.8453047651 | AD78: -1.088398915 | AE78: -0.569413059
C79: -0.4314214464 | D79: -0.7596943077 | E79: 0.2730210412 | R79: -0.82338 | S79: -0.93648 | T79: -1.02677 | U79: -1.05263 | V79: -1.02385 | W79: -0.98825 | X79: -1.05263 | Y79: -0.3846387059 | Z79: -0.274686718 | AA79: -0.3473808705 | AB79: -0.5503357081 | AC79: -0.823359605 | AD79: -1.063269758 | AE79: -0.5503357081
C80: -0.4239401496 | D80: -0.7498797516 | E80: 0.2945416707 | R80: -0.82099 | S80: -0.93461 | T80: -1.02460 | U80: -1.05024 | V80: -1.02179 | W80: -0.98674 | X80: -1.05024 | Y80: -0.3677764833 | Z80: -0.2573128882 | AA80: -0.3297586814 | AB80: -0.5310320372 | AC80: -0.8008435548 | AD80: -1.037281566 | AE80: -0.5310320372
C81: -0.4164588529 | D81: -0.7398973162 | E81: 0.3159139374 | R81: -0.81859 | S81: -0.93260 | T81: -1.02216 | U81: -1.04755 | V81: -1.01948 | W81: -0.98501 | X81: -1.04755 | Y81: -0.3509142607 | Z81: -0.2400773307 | AA81: -0.3121793815 | AB81: -0.5115143323 | AC81: -0.7777861514 | AD81: -1.010481439 | AE81: -0.5115143323
C82: -0.4089775561 | D82: -0.7297492362 | E82: 0.337127076 | R82: -0.81620 | S82: -0.93045 | T82: -1.01947 | U82: -1.04458 | V82: -1.01692 | W82: -0.98306 | X82: -1.04458 | Y82: -0.3340520382 | Z82: -0.2229800453 | AA82: -0.2946451736 | AB82: -0.4917947588 | AC82: -0.7542164609 | AD82: -0.982915535 | AE82: -0.4917947588
C83: -0.4014962594 | D83: -0.7194377836 | E83: 0.3581704013 | R83: -0.81381 | S83: -0.92816 | T83: -1.01652 | U83: -1.04132 | V83: -1.01410 | W83: -0.98089 | X83: -1.04132 | Y83: -0.3171898156 | Z83: -0.2060210322 | AA83: -0.2771582606 | AB83: -0.4718853622 | AC83: -0.730163082 | AD83: -0.9546290809 | AE83: -0.4718853622
C84: -0.3940149626 | D84: -0.7089652669 | E84: 0.3790333137 | R84: -0.81141 | S84: -0.92572 | T84: -1.01332 | U84: -1.03778 | V84: -1.01102 | W84: -0.97851 | X84: -1.03778 | Y84: -0.300327593 | Z84: -0.1892002913 | AA84: -0.2597208453 | AB84: -0.4517980678 | AC84: -0.7056541481 | AD84: -0.9256663791 | AE84: -0.4517980678
C85: -0.3865336658 | D85: -0.6983340305 | E85: 0.3997053043 | R85: -0.80902 | S85: -0.92314 | T85: -1.00986 | U85: -1.03397 | V85: -1.00770 | W85: -0.97590 | X85: -1.03397 | Y85: -0.2834653704 | Z85: -0.1725178226 | AA85: -0.2423351305 | AB85: -0.4315446806 | AC85: -0.6807173309 | AD85: -0.896070819 | AE85: -0.4315446806
C86: -0.3790523691 | D86: -0.6875464546 | E86: 0.4201759606 | R86: -0.80663 | S86: -0.92042 | T86: -1.00616 | U86: -1.02987 | V86: -1.00413 | W86: -0.97307 | X86: -1.02987 | Y86: -0.2666031478 | Z86: -0.1559736261 | AA86: -0.2250033192 | AB86: -0.4111368854 | AC86: -0.6553798427 | AD86: -0.8658848856 | AE86: -0.4111368854
C87: -0.3715710723 | D87: -0.6766049542 | E87: 0.4404349712 | R87: -0.80423 | S87: -0.91756 | T87: -1.00222 | U87: -1.02551 | V87: -1.00031 | W87: -0.97002 | X87: -1.02551 | Y87: -0.2497409253 | Z87: -0.1395677018 | AA87: -0.207727614 | AB87: -0.3905862471 | AC87: -0.6296684393 | AD87: -0.8351501691 | AE87: -0.3905862471
C88: -0.3640897756 | D88: -0.6655119788 | E88: 0.4604721316 | R88: -0.80184 | S88: -0.91455 | T88: -0.99804 | U88: -1.02089 | V88: -0.99625 | W88: -0.96674 | X88: -1.02089 | Y88: -0.2328787027 | Z88: -0.1233000497 | AA88: -0.1905102179 | AB88: -0.3699042102 | AC88: -0.6036094232 | AD88: -0.8039073743 | AE88: -0.3699042102
C89: -0.3566084788 | D89: -0.654270012 | E89: 0.480277349 | R89: -0.79945 | S89: -0.91141 | T89: -0.99361 | U89: -1.01600 | V89: -0.99195 | W89: -0.96325 | X89: -1.01600 | Y89: -0.2160164801 | Z89: -0.1071706698 | AA89: -0.1733533338 | AB89: -0.3491020989 | AC89: -0.5772286458 | AD89: -0.7721963297 | AE89: -0.3491020989
C90: -0.349127182 | D90: -0.6428815704 | E90: 0.4998406472 | R90: -0.79705 | S90: -0.90812 | T90: -0.98895 | U90: -1.01086 | V90: -0.98742 | W90: -0.95954 | X90: -1.01086 | Y90: -0.1991542575 | Z90: -0.09117956219 | AA90: -0.1562591644 | AB90: -0.3281911176 | AC90: -0.550551511 | AD90: -0.7400559965 | AE90: -0.3281911176
C91: -0.3416458853 | D91: -0.6313492037 | E91: 0.5191521722 | R91: -0.79466 | S91: -0.90469 | T91: -0.98406 | U91: -1.00546 | V91: -0.98264 | W91: -0.95561 | X91: -1.00546 | Y91: -0.1822920349 | Z91: -0.07532672674 | AA91: -0.1392299126 | AB91: -0.3071823502 | AC91: -0.5236029775 | AD91: -0.7075244785 | AE91: -0.3071823502
C92: -0.3341645885 | D92: -0.6196754936 | E92: 0.5382021966 | R92: -0.79227 | S92: -0.90111 | T92: -0.97894 | U92: -0.99981 | V92: -0.97764 | W92: -0.95146 | X92: -0.99981 | Y92: -0.1654298123 | Z92: -0.05961216351 | AA92: -0.1222677812 | AB92: -0.2860867604 | AC92: -0.4964075616 | AD92: -0.6746390305 | AE92: -0.2860867604
C93: -0.3266832918 | D93: -0.6078630537 | E93: 0.5569811248 | R93: -0.78987 | S93: -0.89740 | T93: -0.97359 | U93: -0.99391 | V93: -0.97240 | W93: -0.94710 | X93: -0.99391 | Y93: -0.1485675898 | Z93: -0.04403587249 | AA93: -0.1053749731 | AB93: -0.2649151921 | AC93: -0.4689893406 | AD93: -0.6414360678 | AE93: -0.2649151921
C94: -0.319201995 | D94: -0.5959145285 | E94: 0.5754794976 | R94: -0.78748 | S94: -0.89354 | T94: -0.96801 | U94: -0.98777 | V94: -0.96693 | W94: -0.94251 | X94: -0.98777 | Y94: -0.1317053672 | Z94: -0.02859785368 | AA94: -0.08855369117 | AB94: -0.2436783685 | AC94: -0.441371955 | AD94: -0.6079511752 | AE94: -0.2436783685
C95: -0.3117206983 | D95: -0.5838325928 | E95: 0.5936879973 | R95: -0.78509 | S95: -0.88954 | T95: -0.96221 | U95: -0.98139 | V95: -0.96124 | W95: -0.93771 | X95: -0.98139 | Y95: -0.1148431446 | Z95: -0.01329810708 | AA95: -0.07180613816 | AB95: -0.2223868931 | AC95: -0.4135786117 | AD95: -0.5742191162 | AE95: -0.2223868931
C96: -0.3042394015 | D96: -0.5716199517 | E96: 0.6115974522 | R96: -0.78269 | S96: -0.88540 | T96: -0.95619 | U96: -0.97478 | V96: -0.95532 | W96: -0.93269 | X96: -0.97478 | Y96: -0.09798092201 | Z96: 0.001863367311 | AA96: -0.05513451696 | AB96: -0.2010512489 | AC96: -0.3856320866 | AD96: -0.5402738415 | AE96: -0.2010512489
C97: -0.2967581047 | D97: -0.559279339 | E97: 0.6291988411 | R97: -0.78030 | S97: -0.88111 | T97: -0.94996 | U97: -0.96794 | V97: -0.94919 | W97: -0.92746 | X97: -0.96794 | Y97: -0.08111869943 | Z97: 0.01688656949 | AA97: -0.03854103041 | AB97: -0.1796817989 | AC97: -0.3575547278 | AD97: -0.5061484985 | AE97: -0.1796817989
C98: -0.289276808 | D98: -0.5468135177 | E98: 0.6464832981 | R98: -0.77791 | S98: -0.87668 | T98: -0.94351 | U98: -0.96087 | V98: -0.94283 | W98: -0.92201 | X98: -0.96087 | Y98: -0.06425647685 | Z98: 0.03177149946 | AA98: -0.02202788134 | AB98: -0.1582887858 | AC98: -0.329368458 | AD98: -0.4718754398 | AE98: -0.1582887858
C99: -0.2817955112 | D99: -0.5342252786 | E99: 0.6634421169 | R99: -0.77551 | S99: -0.87211 | T99: -0.93685 | U99: -0.95357 | V99: -0.93626 | W99: -0.91635 | X99: -0.95357 | Y99: -0.04739425427 | Z99: 0.04651815721 | AA99: -0.005597272593 | AB99: -0.1368823323 | AC99: -0.3010947777 | AD99: -0.4374862324 | AE99: -0.1368823323
C100: -0.2743142145 | D100: -0.5215174397 | E100: 0.6800667552 | R100: -0.77312 | S100: -0.86740 | T100: -0.92998 | U100: -0.94606 | V100: -0.92948 | W100: -0.91048 | X100: -0.94606 | Y100: -0.03053203168 | Z100: 0.06112654276 | AA100: 0.01074859298 | AB100: -0.1154724406 | AC100: -0.2727547679 | AD100: -0.4030116663 | AE100: -0.1154724406
C101: -0.2668329177 | D101: -0.5086928461 | E101: 0.6963488391 | R101: -0.77073 | S101: -0.86255 | T101: -0.92290 | U101: -0.93832 | V101: -0.92248 | W101: -0.90440 | X101: -0.93832 | Y101: -0.0136698091 | Z101: 0.0755966561 | AA101: 0.02700751255 | AB101: -0.09406899298 | AC101: -0.2443690927 | AD101: -0.3684817632 | AE101: -0.09406899298
C102: -0.2593516209 | D102: -0.4957543688 | E102: 0.7122801672 | R102: -0.76833 | S102: -0.85755 | T102: -0.91562 | U102: -0.93038 | V102: -0.91528 | W102: -0.89811 | X102: -0.93038 | Y102: 0.00319241348 | Z102: 0.08992849722 | AA102: 0.04317728326 | AB102: -0.07268175156 | AC102: -0.2159580026 | AD102: -0.3339257854 | AE102: -0.07268175156
C103: -0.2518703242 | D103: -0.4827049046 | E103: 0.7278527147 | R103: -0.76594 | S103: -0.85241 | T103: -0.90814 | U103: -0.92223 | V103: -0.90787 | W103: -0.89160 | X103: -0.92223 | Y103: 0.02005463606 | Z103: 0.1041220661 | AA103: 0.05925570229 | AB103: -0.05132035818 | AC103: -0.187541337 | AD103: -0.2993722447 | AE103: -0.05132035818
C104: -0.2443890274 | D104: -0.4695473747 | E104: 0.7430586377 | R104: -0.76355 | S104: -0.84713 | T104: -0.90047 | U104: -0.91387 | V104: -0.90026 | W104: -0.88490 | X104: -0.91387 | Y104: 0.03691685864 | Z104: 0.1181773628 | AA104: 0.07524056678 | AB104: -0.0299943345 | AC104: -0.1591385273 | AD104: -0.2648489106 | AE104: -0.0299943345
C105: -0.2369077307 | D105: -0.456284725 | E105: 0.7578902767 | R105: -0.76115 | S105: -0.84171 | T105: -0.89259 | U105: -0.90531 | V105: -0.89245 | W105: -0.87798 | X105: -0.90531 | Y105: 0.05377908123 | Z105: 0.1320943873 | AA105: 0.09112967389 | AB105: -0.008713082042 | AC105: -0.1307685992 | AD105: -0.2303828192 | AE105: -0.008713082042
C106: -0.2294264339 | D106: -0.4429199244 | E106: 0.7723401611 | R106: -0.75876 | S106: -0.83615 | T106: -0.88453 | U106: -0.89655 | V106: -0.88444 | W106: -0.87087 | X106: -0.89655 | Y106: 0.07064130381 | Z106: 0.1458731396 | AA106: 0.1069208208 | AB106: 0.01251411786 | AC106: -0.1024501763 | AD106: -0.1960002818 | AE106: 0.01251411786
C107: -0.2219451372 | D107: -0.4294559652 | E107: 0.7864010123 | R107: -0.75637 | S107: -0.83044 | T107: -0.87627 | U107: -0.88760 | V107: -0.87623 | W107: -0.86355 | X107: -0.88760 | Y107: 0.08750352639 | Z107: 0.1595136197 | AA107: 0.1226118046 | AB107: 0.03367810406 | AC107: -0.07420148233 | AD107: -0.1617268933 | AE107: 0.03367810406
C108: -0.2144638404 | D108: -0.4158958615 | E108: 0.8000657478 | R108: -0.75397 | S108: -0.82459 | T108: -0.86783 | U108: -0.87846 | V108: -0.86783 | W108: -0.85603 | X108: -0.87846 | Y108: 0.104365749 | Z108: 0.1730158275 | AA108: 0.1382004226 | AB108: 0.05476983559 | AC108: -0.04604034428 | AD108: -0.1275875409 | AE108: 0.05476983559
C109: -0.2069825436 | D109: -0.4022426491 | E109: 0.8133274844 | R109: -0.75158 | S109: -0.81860 | T109: -0.85921 | U109: -0.86913 | V109: -0.85925 | W109: -0.84831 | X109: -0.86913 | Y109: 0.1212279716 | Z109: 0.1863797632 | AA109: 0.1536844718 | AB109: 0.07578039163 | AC109: -0.01798419515 | AD109: -0.09360641216 | AE109: 0.07578039163
C110: -0.1995012469 | D110: -0.3884993846 | E110: 0.8261795423 | R110: -0.74919 | S110: -0.81246 | T110: -0.85040 | U110: -0.85962 | V110: -0.85047 | W110: -0.84039 | X110: -0.85962 | Y110: 0.1380901941 | Z110: 0.1996054266 | AA110: 0.1690617494 | AB110: 0.09670097159 | AC110: 0.0099499232 | AD110: -0.05980700392 | AE110: 0.09670097159
C111: -0.1920199501 | D111: -0.3746691448 | E111: 0.8386154477 | R111: -0.74679 | S111: -0.80619 | T111: -0.84142 | U111: -0.84993 | V111: -0.84152 | W111: -0.83228 | X111: -0.84993 | Y111: 0.1549524167 | Z111: 0.2126928179 | AA111: 0.1843300526 | AB111: 0.117522895 | AC111: 0.03774535721 | AD111: -0.02621213028 | AE111: 0.117522895
C112: -0.1845386534 | D112: -0.360755026 | E112: 0.8506289366 | R112: -0.74440 | S112: -0.79977 | T112: -0.83226 | U112: -0.84006 | V112: -0.83238 | W112: -0.82398 | X112: -0.84006 | Y112: 0.1718146393 | Z112: 0.2256419369 | AA112: 0.1994871786 | AB112: 0.1382376016 | AC112: 0.0653858388 | AD112: 0.007156068859 | AE112: 0.1382376016
C113: -0.1770573566 | D113: -0.3467601431 | E113: 0.8622139576 | R113: -0.74201 | S113: -0.79321 | T113: -0.82292 | U113: -0.83002 | V113: -0.82306 | W113: -0.81548 | X113: -0.83002 | Y113: 0.1886768619 | Z113: 0.2384527837 | AA113: 0.2145309244 | AB113: 0.1588366514 | AC113: 0.09285548249 | AD113: 0.0402761196 | AE113: 0.1588366514
C114: -0.1695760599 | D114: -0.3326876293 | E114: 0.8733646754 | R114: -0.73961 | S114: -0.78650 | T114: -0.81342 | U114: -0.81980 | V114: -0.81357 | W114: -0.80680 | X114: -0.81980 | Y114: 0.2055390845 | Z114: 0.2511253583 | AA114: 0.2294590873 | AB114: 0.1793117244 | AC114: 0.1201387826 | AD114: 0.07312720576 | AE114: 0.1793117244
C115: -0.1620947631 | D115: -0.318540635 | E115: 0.8840754733 | R115: -0.73722 | S115: -0.77966 | T115: -0.80374 | U115: -0.80943 | V115: -0.80390 | W115: -0.79793 | X115: -0.80943 | Y115: 0.222401307 | Z115: 0.2636596607 | AA115: 0.2442694644 | AB115: 0.1996546208 | AC115: 0.1472206104 | AD115: 0.1056891607 | AE115: 0.1996546208
C116: -0.1546134663 | D116: -0.3043223274 | E116: 0.8943409561 | R116: -0.73483 | S116: -0.77267 | T116: -0.79391 | U116: -0.79889 | V116: -0.79406 | W116: -0.78887 | X116: -0.79889 | Y116: 0.2392635296 | Z116: 0.2760556908 | AA116: 0.2589598529 | AB116: 0.2198572612 | AC116: 0.1740862114 | AD116: 0.137942459 | AE116: 0.2198572612
C117: -0.1471321696 | D117: -0.2900358896 | E117: 0.904155953 | R117: -0.73243 | S117: -0.76554 | T117: -0.78391 | U117: -0.78819 | V117: -0.78406 | W117: -0.77963 | X117: -0.78819 | Y117: 0.2561257522 | Z117: 0.2883134488 | AA117: 0.2735280499 | AB117: 0.2399116862 | AC117: 0.2007212021 | AD117: 0.1698682087 | AE117: 0.2399116862
C118: -0.1396508728 | D118: -0.2756845201 | E118: 0.9135155202 | R118: -0.73004 | S118: -0.75827 | T118: -0.77375 | U118: -0.77734 | V118: -0.77389 | W118: -0.77021 | X118: -0.77734 | Y118: 0.2729879748 | Z118: 0.3004329345 | AA118: 0.2879718525 | AB118: 0.2598100565 | AC118: 0.2271115677 | AD118: 0.2014481428 | AE118: 0.2598100565
C119: -0.1321695761 | D119: -0.2612714317 | E119: 0.9224149431 | R119: -0.72765 | S119: -0.75086 | T119: -0.76343 | U119: -0.76633 | V119: -0.76356 | W119: -0.76061 | X119: -0.76633 | Y119: 0.2898501974 | Z119: 0.3124141481 | AA119: 0.3022890581 | AB119: 0.2795446532 | AC119: 0.2532436589 | AD119: 0.2326646113 | AE119: 0.2795446532
C120: -0.1246882793 | D120: -0.2467998511 | E120: 0.9308497392 | R120: -0.72525 | S120: -0.74330 | T120: -0.75296 | U120: -0.75518 | V120: -0.75307 | W120: -0.75084 | X120: -0.75518 | Y120: 0.30671242 | Z120: 0.3242570894 | AA120: 0.3164774636 | AB120: 0.2991078774 | AC120: 0.2791041891 | AD120: 0.2635005736 | AE120: 0.2991078774
C121: -0.1172069825 | D121: -0.2322730182 | E121: 0.9388156596 | R121: -0.72286 | S121: -0.73560 | T121: -0.74234 | U121: -0.74388 | V121: -0.74242 | W121: -0.74089 | X121: -0.74388 | Y121: 0.3235746425 | Z121: 0.3359617585 | AA121: 0.3305348663 | AB121: 0.3184922505 | AC121: 0.3046802319 | AD121: 0.2939395898 | AE121: 0.3184922505
C122: -0.1097256858 | D122: -0.2176941852 | E122: 0.946308692 | R122: -0.72047 | S122: -0.72776 | T122: -0.73157 | U122: -0.73244 | V122: -0.73162 | W122: -0.73077 | X122: -0.73244 | Y122: 0.3404368651 | Z122: 0.3475281555 | AA122: 0.3444590634 | AB122: 0.3376904139 | AC122: 0.3299592177 | AD122: 0.3239658137 | AE122: 0.3376904139
C123: -0.102244389 | D123: -0.2030666159 | E123: 0.953325062 | R123: -0.71807 | S123: -0.71978 | T123: -0.72066 | U123: -0.72086 | V123: -0.72067 | W123: -0.72048 | X123: -0.72086 | Y123: 0.3572990877 | Z123: 0.3589562801 | AA123: 0.3582478519 | AB123: 0.3566951295 | AC123: 0.3549289313 | AD123: 0.353563984 | AE123: 0.3566951295
C124: -0.09476309227 | D124: -0.188393585 | E124: 0.9598612354 | R124: -0.71568 | S124: -0.71165 | T124: -0.70960 | U124: -0.70914 | V124: -0.70957 | W124: -0.71002 | X124: -0.70914 | Y124: 0.3741613103 | Z124: 0.3702461326 | AA124: 0.3718990291 | AB124: 0.375499279 | AC124: 0.3795775088 | AD124: 0.3827194171 | AE124: 0.375499279
C125: -0.08728179551 | D125: -0.1736783775 | E125: 0.9659139199 | R125: -0.71329 | S125: -0.70339 | T125: -0.69840 | U125: -0.69730 | V125: -0.69833 | W125: -0.69940 | X125: -0.69730 | Y125: 0.3910235329 | Z125: 0.3813977129 | AA125: 0.385410392 | AB125: 0.3940958644 | AC125: 0.403893435 | AD125: 0.4114179989 | AE125: 0.3940958644
C126: -0.07980049875 | D126: -0.1589242878 | E126: 0.9714800668 | R126: -0.71089 | S126: -0.69498 | T126: -0.68707 | U126: -0.68532 | V126: -0.68694 | W126: -0.68862 | X126: -0.68532 | Y126: 0.4078857554 | Z126: 0.392411021 | AA126: 0.398779738 | AB126: 0.4124780082 | AC126: 0.4278655404 | AD126: 0.4396461775 | AE126: 0.4124780082
C127: -0.072319202 | D127: -0.1441346189 | E127: 0.9765568723 | R127: -0.70850 | S127: -0.68642 | T127: -0.67559 | U127: -0.67322 | V127: -0.67542 | W127: -0.67768 | X127: -0.67322 | Y127: 0.424747978 | Z127: 0.4032860568 | AA127: 0.412004864 | AB127: 0.4306389525 | AC127: 0.4514829984 | AD127: 0.467390955 | AE127: 0.4306389525
C128: -0.06483790524 | D128: -0.1293126818 | E128: 0.9811417792 | R128: -0.70611 | S128: -0.67773 | T128: -0.66399 | U128: -0.66100 | V128: -0.66376 | W128: -0.66658 | X128: -0.66100 | Y128: 0.4416102006 | Z128: 0.4140228205 | AA128: 0.4250835673 | AB128: 0.4485720601 | AC128: 0.4747353225 | AD128: 0.4946398799 | AE128: 0.4485720601
C129: -0.05735660848 | D129: -0.1144617949 | E129: 0.985232478 | R129: -0.70371 | S129: -0.66889 | T129: -0.65226 | U129: -0.64866 | V129: -0.65196 | W129: -0.65533 | X129: -0.64866 | Y129: 0.4584724232 | Z129: 0.4246213119 | AA129: 0.4380136451 | AB129: 0.4662708138 | AC129: 0.4976123634 | AD129: 0.52138104 | AE129: 0.4662708138
C130: -0.04987531172 | D130: -0.09958528283 | E130: 0.9888269083 | R130: -0.70132 | S130: -0.65992 | T130: -0.64040 | U130: -0.63620 | V130: -0.64004 | W130: -0.64393 | X130: -0.63620 | Y130: 0.4753346458 | Z130: 0.4350815311 | AA130: 0.4507928944 | AB130: 0.4837288163 | AC130: 0.5201043062 | AD130: 0.5476030541 | AE130: 0.4837288163
C131: -0.04239401496 | D131: =SIN(2*t) -> -0.0846864761 | E131: =COS(3*t) -> 0.9919232595 | R131: =$J$2+$K$2*(t-B$16)/dtt -> -0.69893 | S131: =R131+$L$2*(t-$B$16)*(t-$B$17)/dtt^2/2 -> -0.65079 | T131: =S131+$M$2*(t-$B$16)*(t-$B$17)*(t-$B$18)/dtt^3/6 -> -0.62842 | U131: =T131+$N$2*(t-$B$16)*(t-$B$17)*(t-$B$18)*(t-$B$19)/dtt^4/24 -> -0.62364 | V131: =U131+$O$2*(t-$B$16)*(t-$B$17)*(t-$B$18)*(t-$B$19)*(t-$B$20)/dtt^5/120 -> -0.62799 | W131: =V131+$P$2*(t-$B$16)*(t-$B$17)*(t-$B$18)*(t-$B$19)*(t-$B$20)*(t-$B$20)/dtt^6/720 -> -0.63239 | X131: =IF(n=1,R131,IF(n=2,S131,IF(n=3,T131,IF(n=4,U131,IF(n=5,V131,W131))))) -> -0.62364 | Y131: 0.4921968684 | Z131: =Y131+$L$13*(t-$B$16)*(t-$B$17)/dtt^2/2 -> 0.4454034781 | AA131: =Z131+$M$13*(t-$B$16)*(t-$B$17)*(t-$B$18)/dtt^3/6 -> 0.4634191125 | AB131: =AA131+$N$13*(t-$B$16)*(t-$B$17)*(t-$B$18)*(t-$B$19)/dtt^4/24 -> 0.5009397909 | AC131: =AB131+$O$13*(t-$B$16)*(t-$B$17)*(t-$B$18)*(t-$B$19)*(t-$B$20)/dtt^5/120 -> 0.5422016675 | AD131: =AC131+$P$13*(t-$B$16)*(t-$B$17)*(t-$B$18)*(t-$B$19)*(t-$B$20)*(t-$B$21)/dtt^6/720 -> 0.5732950648 | AE131: 0.5009397909
C132: -0.0349127182 | D132: -0.06976871019 | E132: 0.9945199719 | R132: -0.69653 | S132: -0.64153 | T132: -0.61631 | U132: -0.61096 | V132: -0.61581 | W132: -0.62069 | X132: -0.61096 | Y132: =$J$13+$K$13*(t-B$16)/dtt -> 0.5090590909 | Z132: 0.4555871529 | AA132: 0.4758900965 | AB132: 0.5178975809 | AC132: 0.5638952927 | AD132: 0.5984467309 | AE132: =IF(n=1,Y132,IF(n=2,Z132,IF(n=3,AA132,IF(n=4,AB132,IF(n=5,AC132,AD132))))) -> 0.5178975809
C133: =C132+B$12 -> -0.02743142145 | D133: -0.0548353248 | E133: 0.9966157376 | R133: -0.69414 | S133: -0.63213 | T133: -0.60409 | U133: -0.59818 | V133: -0.60351 | W133: -0.60886 | X133: -0.59818 | Y133: 0.5259213135 | Z133: 0.4656325555 | AA133: 0.4882036436 | AB133: 0.5345961497 | AC133: 0.5851763531 | AD133: 0.6230482201 | AE133: 0.5345961497
C134: -0.01995012469 | D134: -0.03988966315 | E134: 0.9982095009 | R134: -0.69175 | S134: -0.62258 | T134: -0.59175 | U134: -0.58530 | V134: -0.59110 | W134: -0.59688 | X134: -0.58530 | Y134: 0.5427835361 | Z134: 0.4755396859 | AA134: 0.5003575509 | AB134: 0.551029581 | AC134: 0.606036343 | AD134: 0.6470902013 | AE134: 0.551029581
C135: -0.01246882793 | D135: -0.02493507121 | E135: 0.9993004591 | R135: -0.68935 | S135: -0.61289 | T135: -0.57930 | U135: -0.57232 | V135: -0.57856 | W135: -0.58477 | X135: -0.57232 | Y135: 0.5596457587 | Z135: 0.4853085441 | AA135: 0.5123496156 | AB135: 0.5671920787 | AC135: 0.6264670768 | AD135: 0.6705638375 | AE135: 0.5671920787
C136: -0.004987531172 | D136: -0.009974896922 | E136: 0.9998880625 | R136: -0.68696 | S136: -0.60306 | T136: -0.56674 | U136: -0.55924 | V136: -0.56592 | W136: -0.57253 | X136: -0.55924 | Y136: 0.5765079813 | Z136: 0.49493913 | AA136: 0.5241776348 | AB136: 0.5830779667 | AC136: 0.6464606865 | AD136: 0.693460778 | AE136: 0.5830779667
C137: 0.002493765586 | D137: 0.004987510494 | E137: 0.9999720152 | R137: -0.68457 | S137: -0.59308 | T137: -0.55407 | U137: -0.54607 | V137: -0.55316 | W137: -0.56015 | X137: -0.54607 | Y137: 0.5933702039 | Z137: 0.5044314438 | AA137: 0.5358394058 | AB137: 0.5986816892 | AC137: 0.6660096185 | AD137: 0.7157731516 | AE137: 0.5986816892
C138: 0.009975062344 | D138: 0.01994880133 | E138: 0.999552275 | R138: -0.68217 | S138: -0.58297 | T138: -0.54130 | U138: -0.53281 | V138: -0.54030 | W138: -0.54765 | X138: -0.53281 | Y138: 0.6102324264 | Z138: 0.5137854853 | AA138: 0.5473327256 | AB138: 0.6139978106 | AC138: 0.6851066308 | AD138: 0.7374935593 | AE138: 0.6139978106
C139: 0.0174563591 | D139: 0.03490562613 | E139: 0.9986290532 | R139: -0.67978 | S139: -0.57271 | T139: -0.52842 | U139: -0.51946 | V139: -0.52734 | W139: -0.53503 | X139: -0.51946 | Y139: 0.627094649 | Z139: 0.5230012547 | AA139: 0.5586553914 | AB139: 0.6290210155 | AC139: 0.7037447905 | AD139: 0.7586150665 | AE139: 0.6290210155
C140: 0.02493765586 | D140: 0.04985463643 | E140: 0.997202815 | R140: -0.67739 | S140: -0.56231 | T140: -0.51545 | U140: -0.50603 | V140: -0.51427 | W140: -0.52228 | X140: -0.50603 | Y140: 0.6439568716 | Z140: 0.5320787518 | AA140: 0.5698052004 | AB140: 0.6437461086 | AC140: 0.7219174704 | AD140: 0.7791311965 | AE140: 0.6437461086
C141: 0.03241895262 | D141: 0.06479248552 | E141: 0.9952742786 | R141: -0.67499 | S141: -0.55176 | T141: -0.50238 | U141: -0.49252 | V141: -0.50110 | W141: -0.50941 | X141: -0.49252 | Y141: 0.6608190942 | Z141: 0.5410179767 | AA141: 0.5807799498 | AB141: 0.6581680147 | AC141: 0.7396183469 | AD141: 0.7990359229 | AE141: 0.6581680147
C142: 0.03990024938 | D142: 0.0797158292 | E142: 0.9928444155 | R142: -0.67260 | S142: -0.54108 | T142: -0.48921 | U142: -0.47893 | V142: -0.48784 | W142: -0.49643 | X142: -0.47893 | Y142: 0.6776813168 | Z142: 0.5498189294 | AA142: 0.5915774367 | AB142: 0.672281779 | AC142: 0.7568413964 | AD142: 0.8183236628 | AE142: 0.672281779
C143: 0.04738154613 | D143: 0.09462132649 | E143: 0.9899144497 | R143: -0.67021 | S143: -0.53025 | T143: -0.47595 | U143: -0.46527 | V143: -0.47449 | W143: -0.48334 | X143: -0.46527 | Y143: 0.6945435393 | Z143: 0.5584816098 | AA143: 0.6021954582 | AB143: 0.6860825667 | AC143: 0.7735808929 | AD143: 0.8369892695 | AE143: 0.6860825667
C144: 0.05486284289 | D144: 0.1095056404 | E144: 0.986485857 | R144: -0.66782 | S144: -0.51928 | T144: -0.46261 | U144: -0.45154 | V144: -0.46105 | W144: -0.47013 | X144: -0.45154 | Y144: 0.7114057619 | Z144: 0.5670060181 | AA144: 0.6126318115 | AB144: 0.6995656632 | AC144: 0.7898314051 | AD144: 0.8550280257 | AE144: 0.6995656632
C145: 0.06234413965 | D145: 0.1243654388 | E145: 0.9825603643 | R145: -0.66542 | S145: -0.50817 | T145: -0.44918 | U145: -0.43773 | V145: -0.44752 | W145: -0.45683 | X145: -0.43773 | Y145: 0.7282679845 | Z145: 0.5753921542 | AA145: 0.6228842938 | AB145: 0.7127264742 | AC145: 0.8055877935 | AD145: 0.8724356362 | AE145: 0.7127264742
C146: 0.06982543641 | D146: 0.1391973948 | E146: 0.9781399491 | R146: -0.66303 | S146: -0.49692 | T146: -0.43567 | U146: -0.42387 | V146: -0.43391 | W146: -0.44342 | X146: -0.42387 | Y146: 0.7451302071 | Z146: 0.583640018 | AA146: 0.6329507022 | AB146: 0.7255605255 | AC146: 0.8208452078 | AD146: 0.8892082215 | AE146: 0.7255605255
C147: 0.07730673317 | D147: 0.153998188 | E147: 0.9732268379 | R147: -0.66064 | S147: -0.48552 | T147: -0.42207 | U147: -0.40994 | V147: -0.42022 | W147: -0.42990 | X147: -0.40994 | Y147: 0.7619924297 | Z147: 0.5917496097 | AA147: 0.642828834 | AB147: 0.738063463 | AC147: 0.8355990835 | AD147: 0.9053423102 | AE147: 0.738063463
C148: 0.08478802993 | D148: 0.1687645049 | E148: 0.9678235055 | R148: -0.65824 | S148: -0.47398 | T148: -0.40840 | U148: -0.39596 | V148: -0.40646 | W148: -0.41630 | X148: -0.39596 | Y148: 0.7788546523 | Z148: 0.5997209291 | AA148: 0.6525164861 | AB148: 0.7502310529 | AC148: 0.8498451396 | AD148: 0.9208348327 | AE148: 0.7502310529
C149: 0.09226932668 | D149: 0.1834930396 | E149: 0.9619326735 | R149: -0.65585 | S149: -0.46230 | T149: -0.39466 | U149: -0.38191 | V149: -0.39261 | W149: -0.40260 | X149: -0.38191 | Y149: 0.7957168748 | Z149: 0.6075539763 | AA149: 0.6620114559 | AB149: 0.7620591815 | AC149: 0.8635793757 | AD149: 0.9356831142 | AE149: 0.7620591815
C150: 0.09975062344 | D150: 0.1981804948 | E150: 0.9555573092 | R150: -0.65346 | S150: -0.45048 | T150: -0.38084 | U150: -0.36782 | V150: -0.37870 | W150: -0.38881 | X150: -0.36782 | Y150: 0.8125790974 | Z150: 0.6152487513 | AA150: 0.6713115405 | AB150: 0.7735438553 | AC150: 0.8767980689 | AD150: 0.9498848679 | AE150: 0.7735438553
C151: 0.1072319202 | D151: 0.2128235824 | E151: 0.9487006239 | R151: -0.65106 | S151: -0.43851 | T151: -0.36695 | U151: -0.35367 | V151: -0.36472 | W151: -0.37493 | X151: -0.35367 | Y151: 0.82944132 | Z151: 0.6228052541 | AA151: 0.680414537 | AB151: 0.784681201 | AC151: 0.8894977711 | AD151: 0.9634381883 | AE151: 0.784681201
C152: 0.114713217 | D152: 0.227419024 | E152: 0.9413660715 | R152: -0.64867 | S152: -0.42640 | T152: -0.35300 | U152: -0.33948 | V152: -0.35067 | W152: -0.36097 | X152: -0.33948 | Y152: 0.8463035426 | Z152: 0.6302234847 | AA152: 0.6893182426 | AB152: 0.7954674654 | AC152: 0.9016753063 | AD152: 0.9763415444 | AE152: 0.7954674654
C153: 0.1221945137 | D153: 0.2419635523 | E153: 0.9335573463 | R153: -0.64628 | S153: -0.41415 | T153: -0.33898 | U153: -0.32524 | V153: -0.33657 | W153: -0.34694 | X153: -0.32524 | Y153: 0.8631657652 | Z153: 0.6375034431 | AA153: 0.6980204544 | AB153: 0.8058990157 | AC153: 0.9133277676 | AD153: 0.9885937733 | AE153: 0.8058990157
C154: 0.1296758105 | D154: 0.2564539109 | E154: 0.9252783817 | R154: -0.64388 | S154: -0.40176 | T154: -0.32491 | U154: -0.31096 | V154: -0.32240 | W154: -0.33282 | X154: -0.31096 | Y154: 0.8800279877 | Z154: 0.6446451292 | AA154: 0.7065189696 | AB154: 0.8159723389 | AC154: 0.9244525142 | AD154: 1.000194073 | AE154: 0.8159723389
C155: 0.1371571072 | D155: 0.2708868559 | E155: 0.9165333478 | R155: -0.64149 | S155: -0.38923 | T155: -0.31077 | U155: -0.29665 | V155: -0.30818 | W155: -0.31863 | X155: -0.29665 | Y155: 0.8968902103 | Z155: 0.6516485432 | AA155: 0.7148115854 | AB155: 0.8256840426 | AC155: 0.9350471691 | AD155: 1.011141998 | AE155: 0.8256840426
C156: 0.144638404 | D156: 0.2852591561 | E156: 0.9073266496 | R156: -0.63910 | S156: -0.37655 | T156: -0.29658 | U156: -0.28230 | V156: -0.29390 | W156: -0.30437 | X156: -0.28230 | Y156: 0.9137524329 | Z156: 0.6585136849 | AA156: 0.7228960989 | AB156: 0.8350308543 | AC156: 0.9451096156 | AD156: 1.021437447 | AE156: 0.8350308543
C157: 0.1521197007 | D157: 0.2995675939 | E157: 0.8976629245 | R157: -0.63670 | S157: -0.36373 | T157: -0.28234 | U157: -0.26791 | V157: -0.27957 | W157: -0.29005 | X157: -0.26791 | Y157: 0.9306146555 | Z157: 0.6652405545 | AA157: 0.7307703073 | AB157: 0.8440096217 | AC157: 0.9546379949 | AD157: 1.031080666 | AE157: 0.8440096217
C158: 0.1596009975 | D158: 0.3138089659 | E158: 0.8875470403 | R158: -0.63431 | S158: -0.35077 | T158: -0.26804 | U158: -0.25350 | V158: -0.26520 | W158: -0.27566 | X158: -0.25350 | Y158: 0.9474768781 | Z158: 0.6718291518 | AA158: 0.7384320077 | AB158: 0.8526173127 | AC158: 0.9636307034 | AD158: 1.040072231 | AE158: 0.8526173127
C159: 0.1670822943 | D159: 0.327980084 | E159: 0.8769840924 | R159: -0.63192 | S159: -0.33767 | T159: -0.25370 | U159: -0.23906 | V159: -0.25078 | W159: -0.26121 | X159: -0.23906 | Y159: 0.9643391007 | Z159: 0.6782794769 | AA159: 0.7458789973 | AB159: 0.8608510155 | AC159: 0.9720863892 | AD159: 1.048413051 | AE159: 0.8608510155
C160: 0.174563591 | D160: 0.3420777756 | E160: 0.8659794014 | R160: -0.62952 | S160: -0.32442 | T160: -0.23932 | U160: -0.22459 | V160: -0.23632 | W160: -0.24671 | X160: -0.22459 | Y160: 0.9812013232 | Z160: 0.6845915298 | AA160: 0.7531090733 | AB160: 0.8687079384 | AC160: 0.9800039499 | AD160: 1.056104355 | AE160: 0.8687079384
C161: 0.1820448878 | D161: 0.3560988845 | E161: 0.8545385104 | R161: -0.62713 | S161: -0.31103 | T161: -0.22489 | U161: -0.21010 | V161: -0.22182 | W161: -0.23215 | X161: -0.21010 | Y161: 0.9980635458 | Z161: 0.6907653105 | AA161: 0.7601200328 | AB161: 0.8761854099 | AC161: 0.9873825296 | AD161: 1.063147689 | AE161: 0.8761854099
C162: 0.1895261845 | D162: 0.3700402717 | E162: 0.8426671824 | R162: -0.62474 | S162: -0.29750 | T162: -0.21042 | U162: -0.19560 | V162: -0.20729 | W162: -0.21754 | X162: -0.19560 | Y162: 1.014925768 | Z162: 0.696800819 | AA162: 0.766909673 | AB162: 0.8832808784 | AC162: 0.9942215158 | AD162: 1.069544909 | AE162: 0.8832808784
C163: 0.1970074813 | D163: 0.3838988161 | E163: 0.8303713969 | R163: -0.62234 | S163: -0.28383 | T163: -0.19592 | U163: -0.18108 | V163: -0.19273 | W163: -0.20289 | X163: -0.18108 | Y163: 1.031787991 | Z163: 0.7026980552 | AA163: 0.773475791 | AB163: 0.889991913 | AC163: 1.000520537 | AD163: 1.075298175 | AE163: 0.889991913
C164: 0.2044887781 | D164: 0.3976714152 | E164: 0.8176573475 | R164: -0.61995 | S164: -0.27002 | T164: -0.18138 | U164: -0.16654 | V164: -0.17813 | W164: -0.18819 | X164: -0.16654 | Y164: 1.048650214 | Z164: 0.7084570193 | AA164: 0.779816184 | AB164: 0.8963162025 | AC164: 1.006279459 | AD164: 1.080409943 | AE164: 0.8963162025
C165: 0.2119700748 | D165: 0.4113549856 | E165: 0.8045314384 | R165: -0.61756 | S165: -0.25606 | T165: -0.16681 | U165: -0.15200 | V165: -0.16351 | W165: -0.17346 | X165: -0.15200 | Y165: 1.065512436 | Z165: 0.7140777111 | AA165: 0.7859286491 | AB165: 0.9022515563 | AC165: 1.011498384 | AD165: 1.084882963 | AE165: 0.9022515563
C166: 0.2194513716 | D166: 0.4249464639 | E166: 0.791000281 | R166: -0.61516 | S166: -0.24196 | T166: -0.15222 | U166: -0.13744 | V166: -0.14887 | W166: -0.15868 | X166: -0.13744 | Y166: 1.082374659 | Z166: 0.7195601308 | AA166: 0.7918109836 | AB166: 0.9077959035 | AC166: 1.016177645 | AD166: 1.088720267 | AE166: 0.9077959035
C167: 0.2269326683 | D167: 0.4384428073 | E167: 0.7770706913 | R167: -0.61277 | S167: -0.22772 | T167: -0.13760 | U167: -0.12289 | V167: -0.13420 | W167: -0.14388 | X167: -0.12289 | Y167: 1.099236881 | Z167: 0.7249042782 | AA167: 0.7974609845 | AB167: 0.9129472938 | AC167: 1.020317806 | AD167: 1.091925169 | AE167: 0.9129472938
C168: 0.2344139651 | D168: 0.4518409943 | E168: 0.7627496855 | R168: -0.61038 | S168: -0.21334 | T168: -0.12295 | U168: -0.10833 | V168: -0.11952 | W168: -0.12905 | X168: -0.10833 | Y168: 1.116099104 | Z168: 0.7301101534 | AA168: 0.802876449 | AB168: 0.9177038968 | AC168: 1.023919655 | AD168: 1.094501254 | AE168: 0.9177038968
C169: 0.2418952618 | D169: 0.4651380253 | E169: 0.7480444773 | R169: -0.60798 | S169: -0.19881 | T169: -0.10829 | U169: -0.09377 | V169: -0.10483 | W169: -0.11419 | X169: -0.09377 | Y169: 1.132961326 | Z169: 0.7351777564 | AA169: 0.8080551744 | AB169: 0.9220640025 | AC169: 1.026984206 | AD169: 1.096452375 | AE169: 0.9220640025
C170: 0.2493765586 | D170: 0.4783309236 | E170: 0.7329624738 | R170: -0.60559 | S170: -0.18414 | T170: -0.09361 | U170: -0.07921 | V170: -0.09012 | W170: -0.09930 | X170: -0.07921 | Y170: 1.149823549 | Z170: 0.7401070872 | AA170: 0.8129949576 | AB170: 0.9260260209 | AC170: 1.029512694 | AD170: 1.097782646 | AE170: 0.9260260209
C171: 0.2568578554 | D171: 0.4914167355 | E171: 0.717511272 | R171: -0.60320 | S171: -0.16933 | T171: -0.07891 | U171: -0.06466 | V171: -0.07540 | W171: -0.08440 | X171: -0.06466 | Y171: 1.166685772 | Z171: 0.7448981458 | AA171: 0.817693596 | AB171: 0.9295884822 | AC171: 1.031506571 | AD171: 1.098496436 | AE171: 0.9295884822
C172: 0.2643391521 | D172: 0.5043925315 | E172: 0.7016986546 | R172: -0.60080 | S172: -0.15438 | T172: -0.06421 | U172: -0.05012 | V172: -0.06068 | W172: -0.06948 | X172: -0.05012 | Y172: 1.183547994 | Z172: 0.7495509322 | AA172: 0.8221488866 | AB172: 0.932750037 | AC172: 1.032967504 | AD172: 1.098598365 | AE172: 0.932750037
C173: 0.2718204489 | D173: 0.5172554066 | E173: 0.6855325867 | R173: -0.59841 | S173: -0.13929 | T173: -0.04949 | U173: -0.03559 | V173: -0.04596 | W173: -0.05455 | X173: -0.03559 | Y173: 1.200410217 | Z173: 0.7540654463 | AA173: 0.8263586267 | AB173: 0.9355094557 | AC173: 1.033897374 | AD173: 1.098093293 | AE173: 0.9355094557
C174: 0.2793017456 | D174: 0.5300024812 | E174: 0.6690212112 | R174: -0.59602 | S174: -0.12405 | T174: -0.03477 | U174: -0.02107 | V174: -0.03123 | W174: -0.03962 | X174: -0.02107 | Y174: 1.217272439 | Z174: 0.7584416883 | AA174: 0.8303206133 | AB174: 0.9378656292 | AC174: 1.034298269 | AD174: 1.096986321 | AE174: 0.9378656292
C175: 0.2867830424 | D175: 0.5426309014 | E175: 0.652172845 | R175: -0.59362 | S175: -0.10867 | T175: -0.02004 | U175: -0.00657 | V175: -0.01651 | W175: -0.02467 | X175: -0.00657 | Y175: 1.234134662 | Z175: 0.762679658 | AA175: 0.8340326437 | AB175: 0.9398175684 | AC175: 1.034172487 | AD175: 1.095282781 | AE175: 0.9398175684
C176: 0.2942643392 | D176: 0.5551378401 | E176: 0.6349959747 | R176: -0.59123 | S176: -0.09315 | T176: -0.00532 | U176: 0.00791 | V176: -0.00180 | W176: -0.00972 | X176: 0.00791 | Y176: 1.250996885 | Z176: 0.7667793555 | AA176: 0.837492515 | AB176: 0.9413644045 | AC176: 1.033522527 | AD176: 1.09298823 | AE176: 0.9413644045
C177: 0.3017456359 | D177: 0.5675204973 | E177: 0.6174992524 | R177: -0.58884 | S177: -0.07749 | T177: 0.00941 | U177: 0.02238 | V177: 0.01291 | W177: 0.00522 | X177: 0.02238 | Y177: 1.267859107 | Z177: 0.7707407808 | AA177: 0.8406980243 | AB177: 0.9425053887 | AC177: 1.032351089 | AD177: 1.090108448 | AE177: 0.9425053887
C178: 0.3092269327 | D178: 0.5797761009 | E178: 0.5996914914 | R178: -0.58644 | S178: -0.06168 | T178: 0.02413 | U178: 0.03681 | V178: 0.02760 | W178: 0.02016 | X178: 0.03681 | Y178: 1.28472133 | Z178: 0.7745639339 | AA178: 0.8436469688 | AB178: 0.9432398926 | AC178: 1.030661075 | AD178: 1.086649427 | AE178: 0.9432398926
C179: 0.3167082294 | D179: 0.591901907 | E179: 0.5815816616 | R179: -0.58405 | S179: -0.04573 | T179: 0.03884 | U179: 0.05122 | V179: 0.04228 | W179: 0.03509 | X179: 0.05122 | Y179: 1.301583552 | Z179: 0.7782488148 | AA179: 0.8463371457 | AB179: 0.9435674078 | AC179: 1.028455578 | AD179: 1.082617371 | AE179: 0.9435674078
C180: 0.3241895262 | D180: 0.6038952011 | E180: 0.5631788849 | R180: -0.58166 | S180: -0.02964 | T180: 0.05354 | U180: 0.06561 | V180: 0.05694 | W180: 0.05002 | X180: 0.06561 | Y180: 1.318445775 | Z180: 0.7817954235 | AA180: 0.8487663522 | AB180: 0.9434875463 | AC180: 1.025737886 | AD180: 1.078018686 | AE180: 0.9434875463
C181: 0.3316708229 | D181: 0.6157532981 | E181: 0.5444924311 | R181: -0.57926 | S181: -0.01341 | T181: 0.06823 | U181: 0.07996 | V181: 0.07158 | W181: 0.06492 | X181: 0.07996 | Y181: 1.335307997 | Z181: 0.78520376 | AA181: 0.8509323853 | AB181: 0.9430000399 | AC181: 1.022511475 | AD181: 1.072859979 | AE181: 0.9430000399
C182: 0.3391521197 | D182: 0.6274735434 | E182: 0.5255317126 | R182: -0.57687 | S182: 0.00296 | T182: 0.08290 | U182: 0.09428 | V182: 0.08619 | W182: 0.07981 | X182: 0.09428 | Y182: 1.35217022 | Z182: 0.7884738243 | AA182: 0.8528330423 | AB182: 0.9421047409 | AC182: 1.018780009 | AD182: 1.067148045 | AE182: 0.9421047409
C183: 0.3466334165 | D183: 0.639053313 | E183: 0.5063062801 | R183: -0.57448 | S183: 0.01948 | T183: 0.09756 | U183: 0.10856 | V183: 0.10078 | W183: 0.09468 | X183: 0.10856 | Y183: 1.369032443 | Z183: 0.7916056163 | AA183: 0.8544661203 | AB183: 0.9408016217 | AC183: 1.014547336 | AD183: 1.060889872 | AE183: 0.9408016217
C184: 0.3541147132 | D184: 0.6504900145 | E184: 0.4868258175 | R184: -0.57208 | S184: 0.03614 | T184: 0.11219 | U184: 0.12280 | V184: 0.11534 | W184: 0.10952 | X184: 0.12280 | Y184: 1.385894665 | Z184: 0.7945991362 | AA184: 0.8558294164 | AB184: 0.9390907749 | AC184: 1.009817486 | AD184: 1.054092626 | AE184: 0.9390907749
C185: 0.36159601 | D185: 0.6617810876 | E185: 0.4671001373 | R185: -0.56969 | S185: 0.05294 | T185: 0.12680 | U185: 0.13700 | V185: 0.12987 | W185: 0.12434 | X185: 0.13700 | Y185: 1.402756888 | Z185: 0.7974543838 | AA185: 0.8569207279 | AB185: 0.9369724131 | AC185: 1.004594664 | AD185: 1.046763651 | AE185: 0.9369724131
C186: 0.3690773067 | D186: 0.6729240043 | E186: 0.4471391755 | R186: -0.56730 | S186: 0.06988 | T186: 0.14139 | U186: 0.15116 | V186: 0.14437 | W186: 0.13912 | X186: 0.15116 | Y186: 1.41961911 | Z186: 0.8001713592 | AA186: 0.8577378519 | AB186: 0.9344468694 | AC186: 0.9988832552 | AD186: 1.038910464 | AE186: 0.9344468694
C187: 0.3765586035 | D187: 0.6839162702 | E187: 0.4269529865 | R187: -0.56490 | S187: 0.08697 | T187: 0.15594 | U187: 0.16527 | V187: 0.15882 | W187: 0.15387 | X187: 0.16527 | Y187: 1.436481333 | Z187: 0.8027500624 | AA187: 0.8582785855 | AB187: 0.9315145968 | AC187: 0.9926878139 | AD187: 1.030540746 | AE187: 0.9315145968
C188: 0.3840399002 | D188: 0.6947554244 | E188: 0.4065517382 | R188: -0.56251 | S188: 0.10420 | T188: 0.17046 | U188: 0.17933 | V188: 0.17324 | W188: 0.16858 | X188: 0.17933 | Y188: 1.453343556 | Z188: 0.8051904934 | AA188: 0.8585407259 | AB188: 0.9281761685 | AC188: 0.9860130655 | AD188: 1.02166234 | AE188: 0.9281761685
C189: 0.391521197 | D189: 0.7054390401 | E189: 0.385945707 | R189: -0.56012 | S189: 0.12157 | T189: 0.18495 | U189: 0.19335 | V189: 0.18761 | W189: 0.18325 | X189: 0.19335 | Y189: 1.470205778 | Z189: 0.8074926522 | AA189: 0.8585220702 | AB189: 0.9244322781 | AC189: 0.9788639025 | AD189: 1.012283244 | AE189: 0.9244322781
C190: 0.3990024938 | D190: 0.7159647257 | E190: 0.3651452722 | R190: -0.55772 | S190: 0.13908 | T190: 0.19940 | U190: 0.20731 | V190: 0.20194 | W190: 0.19788 | X190: 0.20731 | Y190: 1.487068001 | Z190: 0.8096565388 | AA190: 0.8582204157 | AB190: 0.9202837391 | AC190: 0.9712453813 | AD190: 1.002411607 | AE190: 0.9202837391
C191: 0.4064837905 | D191: 0.7263301246 | E191: 0.3441609112 | R191: -0.55533 | S191: 0.15673 | T191: 0.21381 | U191: 0.22121 | V191: 0.21621 | W191: 0.21246 | X191: 0.22121 | Y191: 1.503930223 | Z191: 0.8116821531 | AA191: 0.8576335595 | AB191: 0.9157314854 | AC191: 0.9631627197 | AD191: 0.9920557241 | AE191: 0.9157314854
C192: 0.4139650873 | D192: 0.7365329164 | E192: 0.3230031938 | R192: -0.55294 | S192: 0.17453 | T192: 0.22818 | U192: 0.23506 | V192: 0.23044 | W192: 0.22699 | X192: 0.23506 | Y192: 1.520792446 | Z192: 0.8135694953 | AA192: 0.8567592987 | AB192: 0.9107765709 | AC192: 0.9546212939 | AD192: 0.9812240302 | AE192: 0.9107765709
C193: 0.421446384 | D193: 0.7465708168 | E193: 0.3016827775 | R193: -0.55054 | S193: 0.19247 | T193: 0.24250 | U193: 0.24885 | V193: 0.24461 | W193: 0.24146 | X193: 0.24885 | Y193: 1.537654668 | Z193: 0.8153185652 | AA193: 0.8555954305 | AB193: 0.9054201698 | AC193: 0.9456266359 | AD193: 0.9699250959 | AE193: 0.9054201698
C194: 0.4289276808 | D194: 0.7564415787 | E194: 0.2802104015 | R194: -0.54815 | S194: 0.21055 | T194: 0.25677 | U194: 0.26257 | V194: 0.25872 | W194: 0.25588 | X194: 0.26257 | Y194: 1.554516891 | Z194: 0.816929363 | AA194: 0.854139752 | AB194: 0.8996635765 | AC194: 0.9361844305 | AD194: 0.9581676223 | AE194: 0.8996635765
C195: 0.4364089776 | D195: =SIN(2*t) -> 0.7661429922 | E195: =COS(3*t) -> 0.2585968814 | R195: =$J$2+$K$2*(t-B$16)/dtt -> -0.54576 | S195: =R195+$L$2*(t-$B$16)*(t-$B$17)/dtt^2/2 -> 0.22878 | T195: =S195+$M$2*(t-$B$16)*(t-$B$17)*(t-$B$18)/dtt^3/6 -> 0.27099 | U195: =T195+$N$2*(t-$B$16)*(t-$B$17)*(t-$B$18)*(t-$B$19)/dtt^4/24 -> 0.27623 | V195: =U195+$O$2*(t-$B$16)*(t-$B$17)*(t-$B$18)*(t-$B$19)*(t-$B$20)/dtt^5/120 -> 0.27277 | W195: =V195+$P$2*(t-$B$16)*(t-$B$17)*(t-$B$18)*(t-$B$19)*(t-$B$20)*(t-$B$20)/dtt^6/720 -> 0.27024 | X195: =IF(n=1,R195,IF(n=2,S195,IF(n=3,T195,IF(n=4,U195,IF(n=5,V195,W195))))) -> 0.27623 | Y195: 1.571379114 | Z195: =Y195+$L$13*(t-$B$16)*(t-$B$17)/dtt^2/2 -> 0.8184018885 | AA195: =Z195+$M$13*(t-$B$16)*(t-$B$17)*(t-$B$18)/dtt^3/6 -> 0.8523900605 | AB195: =AA195+$N$13*(t-$B$16)*(t-$B$17)*(t-$B$18)*(t-$B$19)/dtt^4/24 -> 0.8935082055 | AC195: =AB195+$O$13*(t-$B$16)*(t-$B$17)*(t-$B$18)*(t-$B$19)*(t-$B$20)/dtt^5/120 -> 0.9263005122 | AD195: =AC195+$P$13*(t-$B$16)*(t-$B$17)*(t-$B$18)*(t-$B$19)*(t-$B$20)*(t-$B$21)/dtt^6/720 -> 0.9459604359 | AE195: 0.8935082055
C196: 0.4438902743 | D196: 0.7756728854 | E196: 0.2368531043 | R196: -0.54336 | S196: 0.24714 | T196: 0.28516 | U196: 0.28982 | V196: 0.28676 | W196: 0.28453 | X196: 0.28982 | Y196: =$J$13+$K$13*(t-B$16)/dtt -> 1.588241336 | Z196: 0.8197361418 | AA196: 0.850344153 | AB196: 0.8869555914 | AC196: 0.915980863 | AD196: 0.9333124842 | AE196: =IF(n=1,Y196,IF(n=2,Z196,IF(n=3,AA196,IF(n=4,AB196,IF(n=5,AC196,AD196))))) -> 0.8869555914
C197: =C196+B$12 -> 0.4513715711 | D197: 0.7850291248 | E197: 0.2149900226 | R197: -0.54097 | S197: 0.26565 | T197: 0.29927 | U197: 0.30335 | V197: 0.30069 | W197: 0.29876 | X197: 0.30335 | Y197: 1.605103559 | Z197: 0.8209321229 | AA197: 0.8479998267 | AB197: 0.8800073891 | AC197: 0.9052316089 | AD197: 0.9202328303 | AE197: 0.8800073891
C198: 0.4588528678 | D198: 0.7942096158 | E198: 0.193018649 | R198: -0.53858 | S198: 0.28430 | T198: 0.31332 | U198: 0.31680 | V198: 0.31455 | W198: 0.31292 | X198: 0.31680 | Y198: 1.621965781 | Z198: 0.8219898318 | AA198: 0.8453548789 | AB198: 0.8726653737 | AC198: 0.8940590175 | AD198: 0.9067306482 | AE198: 0.8726653737
C199: 0.4663341646 | D199: 0.8032123031 | E199: 0.1709500504 | R199: -0.53618 | S199: 0.30309 | T199: 0.32731 | U199: 0.33018 | V199: 0.32833 | W199: 0.32701 | X199: 0.33018 | Y199: 1.638828004 | Z199: 0.8229092685 | AA199: 0.8424071066 | AB199: 0.8649314405 | AC199: 0.8824694951 | AD199: 0.8928152185 | AE199: 0.8649314405
C200: 0.4738154613 | D200: 0.8120351712 | E200: 0.1487953431 | R200: -0.53379 | S200: 0.32203 | T200: 0.34123 | U200: 0.34348 | V200: 0.34204 | W200: 0.34102 | X200: 0.34348 | Y200: 1.655690227 | Z200: 0.8236904329 | AA200: 0.839154307 | AB200: 0.8568076048 | AC200: 0.8704695836 | AD200: 0.878495923 | AE200: 0.8568076048
... 211 more rows

Sheet Defining Function
A1: Defining a Function in Excel
A3: Computers have very specific rules you must follow when defining a function. If you don't, the program will either not work at all or will work incorrectly.
A5: 1. The Variable used should be the one named in the instruction, usually x, though sometimes y, t, Q (for an angle theta),
A6: or even x and y (for a function of two variables).
A8: 2. Order of Operations: There five arithmetic operations, addition (+), subtraction (-), multiplication (*), division (/), and exponentiation or power (^). When computers see any of these operation symbols, they perform the indicated steps in a very particular order. First, the power is done. Second, products and quotients of adjacent terms is done. Third, and last, sums and differences of adjacent terms are done. So, in 10*x^3 + 5*x – 7, say with x = 2, the first pass only calculates 2^3 and ignores the multiplications and the sums and differences to calculate 2^3 = 8. The second pass looks at 10*8 + 5*2 – 7 and only does the multiplications, so it produces 80 + 10 - 7. The third pass looks at the +’s and –‘s to produce 80 + 10 – 7 = 83.
A10: 3. Parentheses If you need an operation involving more than two adjacent terms, as in Ö4^3 + 6^2, the computer would take the square root of 4 to produce 2^3 + 6^2; it would then cube the 2 and square the 6 to produce 8 + 36; and finally it would add the 8 and the 36 to get 44. If you actually wanted the square root of the entire expression, you would need to use parentheses, as in Ö(4^3 + 6^2) to tell the computer to do all the operations inside the parentheses before taking the square root. Therefore, it would calculate (4^3 + 6^2) = 64 + 36 = 100 and then take the square root of Ö100 = 10.
A12: 4. Built-In Functions Computer programs have built-in functions for most common algebraic functions. In Excel, the square root function is denoted by SQRT(…), so SQRT(100) = 10. Alternatively, you could enter it as 100^.5 or 100^(1/2); notice that parentheses are needed to have the ½ done first. The common trig functions are SIN (…), COS (…), and TAN (…), where the arguments are automatically interpreted as being in radians, not degrees. The logarithm to the base 10 is represented by LOG (…) and the logarithm with the base e, known as the natural logarithm, is LN (…). The corresponding exponential function with base e is EXP (x). If x is the variable, then each of these would be SQRT (x), SIN (x), COS (x), TAN (x), LOG (x) (for log with base 10 ), LN (x) (for log with base e ), and EXP (x).

Sheet Sheet3
